{"text_format":"1","workbook":"xlsx","n_sheets":3,"sheets":["VMware FINAL ORDER SUMMARY","Product & Price List","Click to Quote"],"not_rendered":{"charts":0,"images":4,"macros":1,"external_links":1,"defined_names":4,"comments":1,"pivot_tables":0},"unopened":[],"bounds":{"document_bytes":16777216,"sheet_cells":100000,"rows_first":2000,"rows_last":500,"rows_between":2000,"halvings":0,"cell_chars":16384,"cell_head_chars":4096},"cells_cut":0,"cells_raw":0,"read":"whole","date_system":"1900"}

{"sheet":"VMware FINAL ORDER SUMMARY","index":0,"n_rows":235,"n_cols":19,"rows_kept":235,"cut":false,"hidden":false,"merged":[[113,5,113,8],[90,5,90,6],[93,15,93,17],[94,7,94,8],[94,15,94,17],[95,7,95,8],[93,5,93,6],[93,7,93,8],[95,15,95,17],[98,5,98,6],[98,7,98,8],[98,15,98,17],[97,15,97,17],[107,5,107,6],[74,7,74,8],[75,7,75,8],[82,7,82,8],[89,5,89,8],[75,15,75,17],[74,5,74,6],[75,5,75,6],[77,5,77,6],[81,7,81,8],[89,9,89,11],[77,15,77,17],[76,7,76,8],[126,5,126,6],[41,12,41,18],[120,5,120,6],[120,12,120,13],[122,5,122,6],[122,12,122,13],[120,7,120,8],[89,12,89,17],[71,12,71,17],[121,5,121,6],[44,12,44,18],[45,12,45,18],[72,7,72,8],[76,15,76,17],[41,6,41,9],[42,12,42,18],[42,6,42,9],[43,6,43,9],[44,6,44,9],[45,6,45,9],[72,5,72,6],[43,12,43,18],[66,6,66,13],[70,5,70,17],[0,6,0,17],[3,5,3,18],[81,15,81,17],[82,15,82,17],[81,5,81,6],[82,5,82,6],[76,5,76,6],[115,5,115,13],[38,6,39,18],[72,15,72,17],[49,5,49,18],[51,10,51,16],[91,5,91,6],[99,7,99,8],[91,7,91,8],[71,9,71,11],[79,5,79,6],[71,5,71,8],[78,15,78,17],[73,5,73,6],[73,7,73,8],[111,6,111,8],[73,15,73,17],[74,15,74,17],[118,7,118,8],[106,15,111,18],[92,15,92,17],[100,5,100,6],[126,12,126,13],[126,7,126,8],[122,7,122,8],[123,5,123,6],[124,5,124,6],[125,5,125,6],[100,7,100,8],[96,5,96,6],[97,5,97,6],[94,5,94,6],[95,5,95,6],[99,15,99,17],[100,15,100,17],[92,5,92,6],[99,5,99,6],[96,7,96,8],[96,15,96,17],[97,7,97,8],[118,12,118,13],[118,5,118,6],[150,8,150,9],[152,7,152,14],[137,7,137,14],[78,7,78,8],[77,7,77,8],[79,15,79,17],[79,7,79,8],[80,5,80,6],[78,5,78,6],[80,15,80,17],[91,15,91,17],[105,7,106,8],[90,7,90,8],[105,11,106,11],[80,7,80,8],[105,9,106,9],[90,15,90,17],[83,15,83,17],[105,5,106,6],[101,5,101,14],[105,10,106,10],[101,15,101,17],[92,7,92,8],[116,7,116,8],[171,7,171,9],[174,6,174,16],[161,7,161,14],[162,7,162,14],[163,7,163,14],[168,7,168,14],[169,7,169,14],[170,7,170,9],[153,7,153,14],[154,7,154,14],[155,7,155,14],[157,7,157,14],[158,7,158,14],[159,7,159,14],[149,6,149,7],[149,8,149,14],[142,7,142,14],[143,7,143,14],[145,6,145,12],[147,6,147,7],[147,8,147,14],[148,6,148,7],[148,8,148,14],[127,5,128,10],[118,15,122,18],[123,15,129,18],[83,5,84,14],[134,6,134,16],[123,7,123,8],[123,12,123,13],[124,7,124,8],[124,12,124,13],[125,7,125,8],[125,12,125,13],[127,12,127,13],[117,7,117,8],[116,5,116,6],[107,7,107,8],[117,5,117,6],[121,7,121,8],[119,12,119,13],[121,12,121,13],[119,7,119,8],[119,5,119,6],[116,12,116,13],[116,15,117,18],[117,12,117,13]]}
[null,"NEW","UPGRADE","RENEWAL",null,"Version 28"]
[]
[]
[null,null,null,null,null,"OARnet / VMware - VIRTUALIZATION PROGRAM ORDER FORM FOR STATE, K12 AND HIGHER EDUCATION "]
[]
[]
[]
[]
[]
[]
[]
[]
[]
[]
[]
[]
[]
[]
[null,"AIRWATCH","••••••••••••  AIRWATCH •••••••••••• ","AIRWATCH"]
[null,"• AirWatch by VMware Secure Content Locker Collaborate",null,"• AirWatch by VMware Secure Content Locker Collaborate"]
[null,"• AirWatch by VMware Mgt Suite for Laptops","AIRWATCH SERCURE CONTENT LOCKER COLLABORATE","• AirWatch by VMware Mgt Suite for Laptops"]
[null,"• AirWatch by VMware Mgt Suite for Rugged Devices","• Upgrade: AirWatchSecContentLockView to S.C.L. Collaborate","• AirWatch by VMware Mgt Suite for Rugged Devices"]
[null,"• AirWatch by VMware Green Mgt Suite",null,"• AirWatch by VMware Green Mgt Suite"]
[null,"• AirWatch by VMware Orange Mgt Suite","AIRWATCH ORANGE MGMT SUITE","• AirWatch by VMware Orange Mgt Suite"]
[null,"• AirWatch by VMware Blue Mgt Suite Perpetual, One Time Fee / Device","• Upgrade: AirWatch Green Mgmt Suite to Orange Mgmt Suite","• AirWatch by VMware Blue Mgt Suite Perpetual, One Time Fee / Device"]
[null,"• AirWatch by VMware Yellow Mgt Suite - Perpetual, One Time Fee / Device",null,"• AirWatch by VMware Yellow Mgt Suite - Perpetual, One Time Fee / Device"]
[null,null,"AIRWATCH BLUE MGMT SUITE"]
[null,"APP VOLUME","• Upgrade: AirWatch Green Mgt STE to Blue Mgt STE - Perpetual, 1XFee/Device","APP VOLUME"]
[null,"• App Volumes 10 Pack (CCU)","• Upgrade: AirWatch Orange Mgt STE to Blue Mgt STE - Perpetual, 1XFee/Device","• App Volumes 10 Pack (CCU)"]
[null,"• App Volumes 100 Pack (CCU)",null,"• App Volumes 100 Pack (CCU)"]
[null,null,"AIRWATCH YELLOW MGMT SUITE"]
[null,"CONTINUENT","• Upgrade: AirWatchMobileDev&ContentLockerView to Yellow Mgt STE - Perpl, 1X Fee/Dev  ***Upgrade from Mobile Device Mgt & AirWatch Content Locker View to Yellow Mgt Suite - Perpetual, One Time Fee / Device","CONTINUENT"]
[null,"• Continuent for Analytics & Big Data - Per Cluster License","• Upgrade:  AirWatch Green Mgt STE to Yellow Mgt STE - Perpetual, 1XFee/Device","• Continuent for Analytics & Big Data - Per Cluster License"]
[null,"• Continuent for Clustering - Per Database Server License","• Upgrade: AirWatch Orange Mgt STE to Yellow Mgt STE - Perpetual, 1X ee/Device","• Continuent for Clustering - Per Database Server License"]
[null,"• Continuent for Disaster Recovery - Per Database Server License","• Upgrade: AirWatch Blue Mgt STE to Yellow Mgt STE - Perpetual, 1XFee/Device","• Continuent for Disaster Recovery - Per Database Server License"]
[null,"• Continuent for Replication - Per Database Server License",null,"• Continuent for Replication - Per Database Server License"]
[null,null,"••••••••••••  APP VOLUME •••••••••••• "]
[null,"FUSION",null,"FUSION"]
[null,"• Fusion Professional Edition, ESD  (SnS is optional)","••••••••••••  CONTINUENT •••••••••••• ","• Fusion Professional Edition, ESD  (SnS is optional)",null,null,"IN WITNESS WHEREOF, each party hereto warrants and represents that this Order Form has been executed by a duly authorized representative of such party, and it constitutes the legal, valid and binding obligation of such party."]
[]
[null,"HORIZON","••••••••••••  FUSION •••••••••••• ","HORIZON"]
[null,"• Horizon Application Management Bundle: 10 Pack (CCU)",null,"• Horizon View Advanced Edition (10 pack) (CCU)",null,null,"OHIO ACADEMIC RESOURCES NETWORK - OARNET",null,null,null,null,"End User:"]
[null,"• Horizon Application Management Bundle: 100 Pack (CCU)","FUSION","• Horizon View Advanced Edition (100 pack) (CCU)",null,"By:",null,null,null,null,null,"Signature:"]
[null,"• Horizon DaaS On Premise Platform: 100-pack","• Upgrade: Fusion 6.x, 6.xPro, 7.x, 7.xPro, & Fusion 8 to Fusion 8 Pro, ESD","• Horizon View Advanced Edition (10 pack) (Named Users)",null,"Name:","Pankaj Shah",null,null,null,null,"Name:"]
[null,"• Horizon FLEX 10 pack (Per Device)",null,"• Horizon View Advanced Edition (100 pack) (Named Users)",null,"Title:","Executive Director, OARnet",null,null,null,null,"Title:"]
[null,"• Horizon View Advanced Edition (10 pack) (CCU)","•••••••••••• HORIZON •••••••••••• ","• Horizon View Application Mgt Bundle: 10 Pack (CCU)",null,"Date:",null,null,null,null,null,"Date:"]
[null,"• Horizon View Advanced Edition (100 pack) (CCU)",null,"• Horizon View Application Mgt Bundle: 100 Pack (CCU)"]
[null,"• Horizon View Advanced Edition (10 pack) (Named Users)","HORIZON VIEW STANDARD ADD-ON","• Horizon DaaS On Premise Platform: 100-pack"]
[null,"• Horizon View Advanced Edition (100 pack) (Named Users)","• Upgrade: ThinAppClient to Horizon View STD Add-On (10pack)","• Horizon FLEX 10 pack (Per Device)"]
[null,"• Horizon View Enterprise Edition (10 pack) (CCU)","• Upgrade: HorizonViewENT Add-on to ViewSTDAdd-On (10pack)","• Horizon View Enterprise Edition (10 pack) (CCU)",null,"END USER CONTACT INFORMATION"]
[null,"• Horizon View Enterprise Edition (100 pack) (CCU)","• Upgrade: HorizonViewENT Add-on to ViewSTDAdd-On (100pack)","• Horizon View Enterprise Edition (100 pack) (CCU)",null,null,"Entity / Customer / End User Name:"]
[null,"• Horizon View Enterprise Edition (10 pack) (Named Users)",null,"• Horizon View Enterprise Edition (10 pack) (Named Users)",null,null,"Portal Folder Name (if known):"]
[null,"• Horizon View Enterprise Edition (100 pack) (Named Users)","HORIZON ADVANCED (NAMED USERS)","• Horizon View Enterprise Edition (100 pack) (Named Users)"]
[null,"• Horizon View Standard Add-On: 10 pack (CCU)","• Upgrade: Workspace to HorizonADV (10pk)(Named Users)","• Horizon View Standard Add-On: 10 pack (CCU)"]
[null,"• Horizon View Standard Add-On: 100 pack (CCU)","• Upgrade: HorizonMirage to HorizonADV (10pk)(Named Users)","• Horizon View Standard Add-On: 100 pack (CCU)",null,null,"Technical Contact (Primary):",null,null,null,"Billing Contact"]
[null,"• Horizon View Standard Edition (10 pack) (CCU)","• Upgrade: MiragePhysical to HorizonADV (10pk)(Named Users)","• Horizon View Standard Edition (10 pack) (CCU)",null,"Name:",null,null,null,"Name:"]
[null,"• Horizon View Standard Edition (100 pack) (CCU)","• Upgrade: Workspace to HorizonADV (100pk)(Named Users)","• Horizon View Standard Edition (100 pack) (CCU)",null,"Address:",null,null,null,"Address:"]
[null,"• Horizon Workspace Portal: 10 pack","• Upgrade: HorizonMirage to HorizonADV (100pk)(Named Users)","• Horizon Workspace Portal: 10 pack",null,"City/State/Zip:",null,null,null,"City/State/Zip:"]
[null,"• Horizon Workspace Portal: 100 pack","• Upgrade: MiragePhysical to HorizonADV (100pk)(Named Users)","• Horizon Workspace Portal: 100 pack",null,"Phone:",null,null,null,"Phone:"]
[null,null,null,null,null,"Email:",null,null,null,"Email:"]
[null,"IT BUSINESS MANAGEMENT (ITBM)","HORIZON ADVANCED (CONCURRENT USERS)","IT BUSINESS/FINANCIAL MANAGEMENT"]
[null,"• IT Business Mgt Foundation package","• Upgrade: Horizon Mirage to Horizon ADV (10 pack) (CCU)","• IT Business Management Foundation package"]
[null,"• IT Business Mgt Additional User","• Upgrade: MiragePhysical to Horizon ADV (10 Pack) (CCU)","• IT Business Management Additional User"]
[]
[null,"• IT Business Mgt Read-Only","• Upgrade: Horizon View Add-on to Horizon ADV (10 pack) (CCU)","• IT Business Management Read-Only"]
[null,"• vRealize Business Advanced Additional User - perpetual license for 5 users","• Upgrade: Horizon View Add-on to Horizon ADV (100 pack) (CCU)","• vRealize Business Advanced Additional User - perpetual license for 5 users"]
[null,"• vRealize Business Advanced Foundation Package - perpetual license for 5 users","• Upgrade: Horizon View STD to ADV (100 pack) (CCU)","• vRealize Business Advanced Foundation Package - perpetual license for 5 users",null,"CUSTOMER:",{"$f":"IF(H51=\"\",\"\",H51)","v":""}]
[null,"• vRealize Business Advanced Read-Only Perpetual License for 5 users",null,"• vRealize Business Advanced Read-Only Perpetual License for 5 users"]
[null,"• vRealize Business Enterprise Additional User - perpetual license for 5 users","HORIZON ENTERPRISE (NAMED USERS)","• vRealize Business Enterprise Additional User - perpetual license for 5 users",null,"ATTACHMENT 1 - ORDER SUMMARY"]
[null,"• vRealize Business Enterprise Foundation Package - perpetual license for 10 users","• Upgrade: Horizon ADV to ENT (10 pack) (Named Users)","• vRealize Business Enterprise Foundation Package - perpetual license for 10 users"]
[null,"• vRealize Business Enterprise Read-Only Perpetual License for 5 users","• Upgrade: Horizon ADV to ENT (100 pack) (Named Users)","• vRealize Business Enterprise Read-Only Perpetual License for 5 users",null,"NEW VMWARE LICENSES and MAINTENANCE"]
[null,null,null,null,null,"VMware Products",null,null,null,"License Fees",null,null,"Maintenance Fees"]
[null,"MIRAGE","HORIZON ENTERPRISE (CONCURRENT USERS)","MIRAGE",null,"Product",null,"Product Code",null,"Qty","License Fee","License Total","SnS Term","SnS Fee","SnS Total","SnS Code",null,null,"Total Cost"]
[null,"• Mirage for Physical: 10 Pack","• Upgrade: App Volumes to Horizon ENT (10 Pack) (CCU)","• Mirage for Physical: 10 Pack",null,null,null,{"$f":"IF(OR(F74=\"\",ISNUMBER(F74)),\"\",VLOOKUP(F74,'Product & Price List'!$D$17:$H$186,2,FALSE))","v":""},null,null,{"$f":"IF(OR(F74=\"\",ISNUMBER(F74)),\"\",VLOOKUP(F74,'Product & Price List'!$D$17:$H$186,4,FALSE))","v":""},{"$f":"IF(OR(F74=\"\",ISNUMBER(F74)),\"\",J74*K74)","v":""},null,{"$f":"IF(OR(F74=\"\",ISNUMBER(F74)),\"\",VLOOKUP(F74,'Product & Price List'!$D$17:$H$186,5,FALSE))","v":""},{"$f":"IF(OR(F74=\"\",ISNUMBER(F74)),\"\",J74*M74*N74)","v":""},{"$f":"IF(OR(F74=\"\",ISNUMBER(F74)),\"\",VLOOKUP(F74,'Product & Price List'!$D$17:$H$186,3,FALSE))","v":""},null,null,{"$f":"IF(OR(F74=\"\",ISNUMBER(F74)),0,L74+O74)","v":0}]
[null,"• Mirage for Physical: 100 Pack","• Upgrade: Horizon View Add-on to Horizon ENT (10 pack) (CCU)","• Mirage for Physical: 100 Pack",null,null,null,{"$f":"IF(OR(F75=\"\",ISNUMBER(F75)),\"\",VLOOKUP(F75,'Product & Price List'!$D$17:$H$186,2,FALSE))","v":""},null,null,{"$f":"IF(OR(F75=\"\",ISNUMBER(F75)),\"\",VLOOKUP(F75,'Product & Price List'!$D$17:$H$186,4,FALSE))","v":""},"",null,{"$f":"IF(OR(F75=\"\",ISNUMBER(F75)),\"\",VLOOKUP(F75,'Product & Price List'!$D$17:$H$186,5,FALSE))","v":""},"",{"$f":"IF(OR(F75=\"\",ISNUMBER(F75)),\"\",VLOOKUP(F75,'Product & Price List'!$D$17:$H$186,3,FALSE))","v":""},null,null,{"$f":"IF(OR(F75=\"\",ISNUMBER(F75)),0,L75+O75)","v":0}]
[null,null,"• Upgrade: Horizon View STD to ENT (10 pack) (CCU)",null,null,null,null,{"$f":"IF(OR(F76=\"\",ISNUMBER(F76)),\"\",VLOOKUP(F76,'Product & Price List'!$D$17:$H$186,2,FALSE))","v":""},null,null,{"$f":"IF(OR(F76=\"\",ISNUMBER(F76)),\"\",VLOOKUP(F76,'Product & Price List'!$D$17:$H$186,4,FALSE))","v":""},"",null,{"$f":"IF(OR(F76=\"\",ISNUMBER(F76)),\"\",VLOOKUP(F76,'Product & Price List'!$D$17:$H$186,5,FALSE))","v":""},"",{"$f":"IF(OR(F76=\"\",ISNUMBER(F76)),\"\",VLOOKUP(F76,'Product & Price List'!$D$17:$H$186,3,FALSE))","v":""},null,null,0]
[null,"NSX / NICIRA","• Upgrade: Horizon ADV to ENT (10 pack) (CCU)",null,null,null,null,{"$f":"IF(OR(F77=\"\",ISNUMBER(F77)),\"\",VLOOKUP(F77,'Product & Price List'!$D$17:$H$186,2,FALSE))","v":""},null,null,{"$f":"IF(OR(F77=\"\",ISNUMBER(F77)),\"\",VLOOKUP(F77,'Product & Price List'!$D$17:$H$186,4,FALSE))","v":""},"",null,{"$f":"IF(OR(F77=\"\",ISNUMBER(F77)),\"\",VLOOKUP(F77,'Product & Price List'!$D$17:$H$186,5,FALSE))","v":""},"",{"$f":"IF(OR(F77=\"\",ISNUMBER(F77)),\"\",VLOOKUP(F77,'Product & Price List'!$D$17:$H$186,3,FALSE))","v":""},null,null,0]
[null,"• NSX for Multi-Hypervisor per Processor","• Upgrade: App Volumes to Horizon ENT (100 Pack) (CCU)","NSX",null,null,null,{"$f":"IF(OR(F78=\"\",ISNUMBER(F78)),\"\",VLOOKUP(F78,'Product & Price List'!$D$17:$H$186,2,FALSE))","v":""},null,null,{"$f":"IF(OR(F78=\"\",ISNUMBER(F78)),\"\",VLOOKUP(F78,'Product & Price List'!$D$17:$H$186,4,FALSE))","v":""},"",null,{"$f":"IF(OR(F78=\"\",ISNUMBER(F78)),\"\",VLOOKUP(F78,'Product & Price List'!$D$17:$H$186,5,FALSE))","v":""},"",{"$f":"IF(OR(F78=\"\",ISNUMBER(F78)),\"\",VLOOKUP(F78,'Product & Price List'!$D$17:$H$186,3,FALSE))","v":""},null,null,0]
[null,"• NSX vSphere  ","• Upgrade: Horizon View Add-on to Horizon ENT (100 pack) (CCU)","• NSX for Multi-Hypervisor per Processor",null,null,null,{"$f":"IF(OR(F79=\"\",ISNUMBER(F79)),\"\",VLOOKUP(F79,'Product & Price List'!$D$17:$H$186,2,FALSE))","v":""},null,null,{"$f":"IF(OR(F79=\"\",ISNUMBER(F79)),\"\",VLOOKUP(F79,'Product & Price List'!$D$17:$H$186,4,FALSE))","v":""},"",null,{"$f":"IF(OR(F79=\"\",ISNUMBER(F79)),\"\",VLOOKUP(F79,'Product & Price List'!$D$17:$H$186,5,FALSE))","v":""},"",{"$f":"IF(OR(F79=\"\",ISNUMBER(F79)),\"\",VLOOKUP(F79,'Product & Price List'!$D$17:$H$186,3,FALSE))","v":""},null,null,0]
[null,"• NSX vSphere - vCloud Suite Add-on","• Upgrade: Horizon View STD to ENT (100 pack) (CCU)","• NSX vSphere  ",null,null,null,{"$f":"IF(OR(F80=\"\",ISNUMBER(F80)),\"\",VLOOKUP(F80,'Product & Price List'!$D$17:$H$186,2,FALSE))","v":""},null,null,{"$f":"IF(OR(F80=\"\",ISNUMBER(F80)),\"\",VLOOKUP(F80,'Product & Price List'!$D$17:$H$186,4,FALSE))","v":""},"",null,{"$f":"IF(OR(F80=\"\",ISNUMBER(F80)),\"\",VLOOKUP(F80,'Product & Price List'!$D$17:$H$186,5,FALSE))","v":""},"",{"$f":"IF(OR(F80=\"\",ISNUMBER(F80)),\"\",VLOOKUP(F80,'Product & Price List'!$D$17:$H$186,3,FALSE))","v":""},null,null,0]
[null,null,"• Upgrade: Horizon ADV to ENT (100 pack) (CCU)","• NSX vSphere - vCloud Suite Add-on",null,null,null,{"$f":"IF(OR(F81=\"\",ISNUMBER(F81)),\"\",VLOOKUP(F81,'Product & Price List'!$D$17:$H$186,2,FALSE))","v":""},null,null,{"$f":"IF(OR(F81=\"\",ISNUMBER(F81)),\"\",VLOOKUP(F81,'Product & Price List'!$D$17:$H$186,4,FALSE))","v":""},"",null,{"$f":"IF(OR(F81=\"\",ISNUMBER(F81)),\"\",VLOOKUP(F81,'Product & Price List'!$D$17:$H$186,5,FALSE))","v":""},"",{"$f":"IF(OR(F81=\"\",ISNUMBER(F81)),\"\",VLOOKUP(F81,'Product & Price List'!$D$17:$H$186,3,FALSE))","v":""},null,null,0]
[null,"PIVOTAL",null,null,null,null,null,{"$f":"IF(OR(F82=\"\",ISNUMBER(F82)),\"\",VLOOKUP(F82,'Product & Price List'!$D$17:$H$186,2,FALSE))","v":""},null,null,{"$f":"IF(OR(F82=\"\",ISNUMBER(F82)),\"\",VLOOKUP(F82,'Product & Price List'!$D$17:$H$186,4,FALSE))","v":""},"",null,{"$f":"IF(OR(F82=\"\",ISNUMBER(F82)),\"\",VLOOKUP(F82,'Product & Price List'!$D$17:$H$186,5,FALSE))","v":""},"",{"$f":"IF(OR(F82=\"\",ISNUMBER(F82)),\"\",VLOOKUP(F82,'Product & Price List'!$D$17:$H$186,3,FALSE))","v":""},null,null,0]
[null,"• Pivotal App Suite v2 Perpetual License (1 core)","HORIZON FLEX","PIVOTAL",null,null,null,{"$f":"IF(OR(F83=\"\",ISNUMBER(F83)),\"\",VLOOKUP(F83,'Product & Price List'!$D$17:$H$186,2,FALSE))","v":""},null,null,{"$f":"IF(OR(F83=\"\",ISNUMBER(F83)),\"\",VLOOKUP(F83,'Product & Price List'!$D$17:$H$186,4,FALSE))","v":""},"",null,{"$f":"IF(OR(F83=\"\",ISNUMBER(F83)),\"\",VLOOKUP(F83,'Product & Price List'!$D$17:$H$186,5,FALSE))","v":""},"",{"$f":"IF(OR(F83=\"\",ISNUMBER(F83)),\"\",VLOOKUP(F83,'Product & Price List'!$D$17:$H$186,3,FALSE))","v":""},null,null,0]
[null,"• Pivotal GemFire XD (Per Core)","• Upgrade: Fusion 5 or 6 Pro to Horizon FLEX per Device","• Pivotal App Suite v2 Perpetual License (1 core)",null,"   *A MINIMUM of 1-year MAINTENANCE (SnS) Term is REQUIRED when purchasing NEW licenses.  (Fusion, Player and Workstation are EXCEPTIONS).  \n     - Active SnS allows for FREE product-version updates & support.  HELP DESK SUPPORT (1-877-486-9273 ) is provided at VMware's PRODUCTION LEVEL.",null,null,null,null,null,null,null,null,null,"SUBTOTAL:",null,null,{"$f":"SUM(S74:S83)","v":0}]
[null,null,"• Upgrade: Fusion Pro/Player Pro to Horizon FLEX per Device","• Pivotal GemFire XD (Per Core)"]
[null,"PLAYER"]
[null,"• Player Pro","•••••••••••• ITBM •••••••••••• ","PLAYER"]
[null,null,null,"• Player Pro"]
[null,"THINAPP","•••••••••••• NSX / NICIRA •••••••••••• "]
[null,"• ThinApp Suite",null,"THINAPP",null,"EXISTING LICENSE UPGRADES",null,null,null,"License Fees",null,null,"Maintenance Fees"]
[null,"• ThinApp Client (100 pack)","NSX for MULTI-HYPERVISOR","• ThinApp Suite",null,"Product",null,"Product Code",null,"Qty","License Fee","License Total","SnS Term","SnS Fee","SnS Total","SnS Code",null,null,"Total Cost"]
[null,null,"• Upgrade: NSX vSphere-vCloudSteAdd-on to NSX Multi-Hypervisor ***Upgrade: NSX for vSphere - vCloud Suite Add-on to VMware NSX for Multi-Hypervisor","• ThinApp Client (100 pack)",null,null,null,{"$f":"IF(OR(F92=\"\",ISNUMBER(F92)),\"\",VLOOKUP(F92,'Product & Price List'!$D$194:$H$413,2,FALSE))","v":""},null,null,{"$f":"IF(OR(F92=\"\",ISNUMBER(F92)),\"\",VLOOKUP(F92,'Product & Price List'!$D$194:$H$413,4,FALSE))","v":""},{"$f":"IF(OR(F92=\"\",ISNUMBER(F92)),\"\",J92*K92)","v":""},null,{"$f":"IF(OR(F92=\"\",ISNUMBER(F92)),\"\",VLOOKUP(F92,'Product & Price List'!$D$194:$H$413,5,FALSE))","v":""},{"$f":"IF(OR(F92=\"\",ISNUMBER(F92)),\"\",J92*M92*N92)","v":""},{"$f":"IF(OR(F92=\"\",ISNUMBER(F92)),\"\",VLOOKUP(F92,'Product & Price List'!$D$194:$H$413,3,FALSE))","v":""},null,null,{"$f":"IF(OR(F92=\"\",ISNUMBER(F92)),0,L92+O92)","v":0}]
[null,"USER ENVIRONMENT MANAGER","• Upgrade: NSX for vSphere to NSX for Multi-Hypervisor",null,null,{"$f":"IF(NOT(H92=\"\"),\"*Prorated Maint Fee for Upgrade Must Be calculated by OARnet\",\"\")","v":""},null,null,null,null,null,null,null,null,{"$f":"IF(H92=\"\",\"\",N93)","v":""},null,null,null,{"$f":"IF(H92=\"\",\"\",N93)","v":""}]
[null,"• User Environment Manager: 10 Pack (CCU)",null,"USER ENVIRONMENT MANAGER",null,null,null,{"$f":"IF(OR(F94=\"\",ISNUMBER(F94)),\"\",VLOOKUP(F94,'Product & Price List'!$D$194:$H$413,2,FALSE))","v":""},null,null,{"$f":"IF(OR(F94=\"\",ISNUMBER(F94)),\"\",VLOOKUP(F94,'Product & Price List'!$D$194:$H$413,4,FALSE))","v":""},{"$f":"IF(OR(F94=\"\",ISNUMBER(F94)),\"\",J94*K94)","v":""},null,{"$f":"IF(OR(F94=\"\",ISNUMBER(F94)),\"\",VLOOKUP(F94,'Product & Price List'!$D$194:$H$413,5,FALSE))","v":""},{"$f":"IF(OR(F94=\"\",ISNUMBER(F94)),\"\",J94*M94*N94)","v":""},{"$f":"IF(OR(F94=\"\",ISNUMBER(F94)),\"\",VLOOKUP(F94,'Product & Price List'!$D$194:$H$413,3,FALSE))","v":""},null,null,{"$f":"IF(OR(F94=\"\",ISNUMBER(F94)),0,L94+O94)","v":0}]
[null,"• User Environment Manager: 10 Pack (Named Users)","••••••••••••  PIVOTAL ••••••••••••• ","• User Environment Manager: 10 Pack (CCU)",null,null,null,null,null,null,null,null,null,null,{"$f":"IF(H94=\"\",\"\",N95)","v":""},null,null,null,{"$f":"IF(H94=\"\",\"\",N95)","v":""}]
[null,"• User Environment Manager: 100 Pack (CCU)",null,"• User Environment Manager: 10 Pack (Named Users)",null,null,null,{"$f":"IF(OR(F96=\"\",ISNUMBER(F96)),\"\",VLOOKUP(F96,'Product & Price List'!$D$194:$H$413,2,FALSE))","v":""},null,null,{"$f":"IF(OR(F96=\"\",ISNUMBER(F96)),\"\",VLOOKUP(F96,'Product & Price List'!$D$194:$H$413,4,FALSE))","v":""},{"$f":"IF(OR(F96=\"\",ISNUMBER(F96)),\"\",J96*K96)","v":""},null,{"$f":"IF(OR(F96=\"\",ISNUMBER(F96)),\"\",VLOOKUP(F96,'Product & Price List'!$D$194:$H$413,5,FALSE))","v":""},{"$f":"IF(OR(F96=\"\",ISNUMBER(F96)),\"\",J96*M96*N96)","v":""},{"$f":"IF(OR(F96=\"\",ISNUMBER(F96)),\"\",VLOOKUP(F96,'Product & Price List'!$D$194:$H$413,3,FALSE))","v":""},null,null,{"$f":"IF(OR(F96=\"\",ISNUMBER(F96)),0,L96+O96)","v":0}]
[null,"• User Environment Manager: 100 Pack (Named Users)","•••••••••••• PLAYER ••••••••••••• ","• User Environment Manager: 100 Pack (CCU)",null,{"$f":"IF(NOT(H96=\"\"),\"*Prorated Maint Fee for Upgrade Must Be calculated by OARnet\",\"\")","v":""},null,null,null,null,null,null,null,null,{"$f":"IF(H96=\"\",\"\",N97)","v":""},null,null,null,{"$f":"IF(H96=\"\",\"\",N97)","v":""}]
[null,null,null,"• User Environment Manager: 100 Pack (Named Users)",null,null,null,{"$f":"IF(OR(F98=\"\",ISNUMBER(F98)),\"\",VLOOKUP(F98,'Product & Price List'!$D$194:$H$413,2,FALSE))","v":""},null,null,{"$f":"IF(OR(F98=\"\",ISNUMBER(F98)),\"\",VLOOKUP(F98,'Product & Price List'!$D$194:$H$413,4,FALSE))","v":""},{"$f":"IF(OR(F98=\"\",ISNUMBER(F98)),\"\",J98*K98)","v":""},null,{"$f":"IF(OR(F98=\"\",ISNUMBER(F98)),\"\",VLOOKUP(F98,'Product & Price List'!$D$194:$H$413,5,FALSE))","v":""},{"$f":"IF(OR(F98=\"\",ISNUMBER(F98)),\"\",J98*M98*N98)","v":""},{"$f":"IF(OR(F98=\"\",ISNUMBER(F98)),\"\",VLOOKUP(F98,'Product & Price List'!$D$194:$H$413,3,FALSE))","v":""},null,null,{"$f":"IF(OR(F98=\"\",ISNUMBER(F98)),0,L98+O98)","v":0}]
[null,"vCENTER ","PLAYER PRO",null,null,{"$f":"IF(NOT(H98=\"\"),\"*Prorated Maint Fee for Upgrade Must Be calculated by OARnet\",\"\")","v":""},null,null,null,null,null,null,null,null,{"$f":"IF(H98=\"\",\"\",N99)","v":""},null,null,null,{"$f":"IF(H98=\"\",\"\",N99)","v":""}]
[null,"• vCenter Configuration Manager Workstation - Linux/Windows","• Upgrade: Player 6 Plus to Player 7 Pro","vCENTER ",null,null,null,{"$f":"IF(OR(F100=\"\",ISNUMBER(F100)),\"\",VLOOKUP(F100,'Product & Price List'!$D$194:$H$413,2,FALSE))","v":""},null,null,{"$f":"IF(OR(F100=\"\",ISNUMBER(F100)),\"\",VLOOKUP(F100,'Product & Price List'!$D$194:$H$413,4,FALSE))","v":""},{"$f":"IF(OR(F100=\"\",ISNUMBER(F100)),\"\",J100*K100)","v":""},null,{"$f":"IF(OR(F100=\"\",ISNUMBER(F100)),\"\",VLOOKUP(F100,'Product & Price List'!$D$194:$H$413,5,FALSE))","v":""},{"$f":"IF(OR(F100=\"\",ISNUMBER(F100)),\"\",J100*M100*N100)","v":""},{"$f":"IF(OR(F100=\"\",ISNUMBER(F100)),\"\",VLOOKUP(F100,'Product & Price List'!$D$194:$H$413,3,FALSE))","v":""},null,null,{"$f":"IF(OR(F100=\"\",ISNUMBER(F100)),0,L100+O100)","v":0}]
[null,"• vCenter Operations Management pack for EPIC",null,"• vCenter Configuration Manager Workstation - Linux/Windows",null,{"$f":"IF(NOT(H100=\"\"),\"*Prorated Maint Fee for Upgrade Must Be calculated by OARnet\",\"\")","v":""},null,null,null,null,null,null,null,null,{"$f":"IF(H100=\"\",\"\",N101)","v":""},null,null,null,{"$f":"IF(H100=\"\",\"\",N101)","v":""}]
[null,"• vCenter Server Foundation for vSphere up to 3 hosts (Per Instance)","••••••••••••  User Environment Manager •••••••••••• ","• vCenter Operations Mgt pack for EPIC",null,"  *Prorated Maint Fee for upgrade orders must be calculated by OARnet.  Before you request a PO, contact your OARnet representative for total upgrade cost.",null,null,null,null,null,null,null,null,null,"SUBTOTAL:",null,null,{"$f":"SUM(S92:S101)","v":0}]
[null,"• vCenter Server Standard for vSphere 6 (Per Instance)",null,"• vCenter Server Foundation for vSphere up to 3 hosts (Per Instance)"]
[null,"• vCenter Site Recovery Manager Standard (25 VM pack)","USER ENVIRONMENT MANAGER","• vCenter Server Standard for vSphere 6 (Per Instance)"]
[null,"• vCenter Site Recovery Manager Enterprise (25 VM pack)","• Upgrade: User Environment Mgr to Horizon ENT ED: 10 Pack (CCU) *** User Environment Manager to Horizon Enterprise Edition: 10 Pack (CCU)","• vCenter Site Recovery Manager Standard (25 VM pack)"]
[null,null,"• Upgrade:  User Environment Mgr to Horizon ENT ED: 10 Pack (Named Users) *** User Environment Manager to Horizon Enterprise Edition: 10 Pack (Named Users)","• vCenter Site Recovery Manager Enterprise (25 VM pack)",null,"Professional Services Credits",null,"Product Code",null,"Qty","PSO Fee","PSO Total"]
[null,"vCLOUD","• Upgrade: User Environment Mgr to Horizon ENT ED: 100 Pack (CCU) *** User Environment Manager to Horizon Enterprise Edition: 100 Pack (CCU)",null,null,null,null,null,null,null,null,null,null,null,null," \"Click to Quote\" Tab\nTo generate a quote, click on the \"Click to Quote\" Tab \n after making selection(s) on the \"Order Summary Page.\"\n"]
[null,"• vCloud Automation Center Development Kit - per Instance","• Upgrade: User Environment Mger to Horizon ENT ED: 100 Pack (Named Users) *** User Environment Manager to Horizon Enterprise Edition: 100 Pack (Named Users)","vCENTER / vREALIZE LOG INSIGHT",null,"PSO Credits",null,"SVC-20-CR80",null,null,84,{"$f":"J108*K108","v":0}]
[null,"• vCloud Suite Standard",null,"• vRealize Log Insight (per CPU)"]
[null,"• vCloud Suite Advanced","•••••••••••• vCENTER •••••••••••• ","• vRealize Log Insight (25 OSI pack)",null,null,"I want to save these PSO credits for future use."]
[null,"• vCloud Suite Enterprise"]
[null,null,"vCENTER ","vCENTER OPERATIONS MANAGEMENT",null,null,"I have selected a training course / consulting service to which the PSO credits will be applied.  (Please complete Attachment 2 on next page)"]
[null,"vFABRIC","• Upgrade: vCenter Server Foundation to Standard","• vCenter Operations Mgmt Suite STD (25 VM pack)"]
[null,"• vFabric Data Director 2.x License (25 VM pack)","• Upgrade: vCenter Site Recovery Manager - STD to ENT (25 VM Pack)","• vCenter Operations Mgmt Suite ADV (25 OperatingSysInstance pack)",null," Click TAB for a List of courses and professional service options."]
[null,null,null,"• vCenter Operations Mgmt Suite ENT (25 OperatingSysInstance pack)"]
[null,"vREALIZE","•••••••••••• vCLOUD •••••••••••• ","• vCenter Operations Management pack for EPIC",null,"MAINTENANCE RENEWAL of EXISTING VMWARE LICENSES"]
[null,"• vRealize Automation Advanced (25 OSI Pack)",null,null,null,"Product",null,"Product Code",null,"Qty","SnS Term","SnS Fee","SnS Total",null,null,{"$f":"SUM(S102,L108,M128:N128, S84)","v":0}]
[null,"• vRealize Automation Enterprise (25 OSI Pack)","• Upgrade: vCloud Suite STD to vCloud Suite ENT","vCLOUD",null,null,null,{"$f":"IF(OR(F118=\"\",ISNUMBER(F118)),\"\",VLOOKUP(F118,'Product & Price List'!$D$417:$H$617,2,FALSE))","v":""},null,null,null,{"$f":"IF(OR(F118=\"\",ISNUMBER(F118)),\"\",VLOOKUP(F118,'Product & Price List'!$D$417:$H$617,3,FALSE))","v":""},{"$f":"IF(OR(F118=\"\",ISNUMBER(F118)),0,J118*K118*L118)","v":0}]
[null,"• vRealize Automation Desktop (25 Pack)","• Upgrade: vCloud Suite ADV to vCloud Suite ENT","• vCloud Automation Center Development Kit - per Instance",null,null,null,{"$f":"IF(OR(F119=\"\",ISNUMBER(F119)),\"\",VLOOKUP(F119,'Product & Price List'!$D$417:$H$617,2,FALSE))","v":""},null,null,null,{"$f":"IF(OR(F119=\"\",ISNUMBER(F119)),\"\",VLOOKUP(F119,'Product & Price List'!$D$417:$H$617,3,FALSE))","v":""},{"$f":"IF(OR(F119=\"\",ISNUMBER(F119)),0,J119*K119*L119)","v":0},null,null,"Purchase Orders must be submitted with this order form. PO Vendor address:    OSU/OARnet 1224 Kinnear Rd\nColumbus, OH  43212\n\nCredit Card payment is accepted at time of order placement for a maximum of $10,000."]
[null,"• vRealize Automation ADV Public Cloud Extension (25 OSI pack)","• Upgrade: vCloud Suite STD to vCloud Suite ADV","• vCloud Suite Standard",null,null,null,{"$f":"IF(OR(F120=\"\",ISNUMBER(F120)),\"\",VLOOKUP(F120,'Product & Price List'!$D$417:$H$617,2,FALSE))","v":""},null,null,null,{"$f":"IF(OR(F120=\"\",ISNUMBER(F120)),\"\",VLOOKUP(F120,'Product & Price List'!$D$417:$H$617,3,FALSE))","v":""},0]
[null,"• vRealize Automation ENT Public Cloud Extension (25 OSI pack)","• Upgrade: vSphere STD to vCloud Suite STD","• vCloud Suite Advanced",null,null,null,{"$f":"IF(OR(F121=\"\",ISNUMBER(F121)),\"\",VLOOKUP(F121,'Product & Price List'!$D$417:$H$617,2,FALSE))","v":""},null,null,null,{"$f":"IF(OR(F121=\"\",ISNUMBER(F121)),\"\",VLOOKUP(F121,'Product & Price List'!$D$417:$H$617,3,FALSE))","v":""},0]
[null,"• vRealize Business Advanced (Per CPU)","• Upgrade: vSphere ENT to vCloud Suite STD","• vCloud Suite Enterprise",null,null,null,{"$f":"IF(OR(F122=\"\",ISNUMBER(F122)),\"\",VLOOKUP(F122,'Product & Price List'!$D$417:$H$617,2,FALSE))","v":""},null,null,null,{"$f":"IF(OR(F122=\"\",ISNUMBER(F122)),\"\",VLOOKUP(F122,'Product & Price List'!$D$417:$H$617,3,FALSE))","v":""},0]
[null,"• vRealize Business Advanced Additional User - perpetual license for 5 users","• Upgrade: vSphere ENT PLUS to vCloud Suite STD",null,null,null,null,{"$f":"IF(OR(F123=\"\",ISNUMBER(F123)),\"\",VLOOKUP(F123,'Product & Price List'!$D$417:$H$617,2,FALSE))","v":""},null,null,null,{"$f":"IF(OR(F123=\"\",ISNUMBER(F123)),\"\",VLOOKUP(F123,'Product & Price List'!$D$417:$H$617,3,FALSE))","v":""},0]
[null,"• vRealize Business Advanced Foundation Package - perpetual license for 5 users","• Upgrade: vSphere w/ Ops Mgt STD to vCloud Suite STD","vFABRIC",null,null,null,{"$f":"IF(OR(F124=\"\",ISNUMBER(F124)),\"\",VLOOKUP(F124,'Product & Price List'!$D$417:$H$617,2,FALSE))","v":""},null,null,null,{"$f":"IF(OR(F124=\"\",ISNUMBER(F124)),\"\",VLOOKUP(F124,'Product & Price List'!$D$417:$H$617,3,FALSE))","v":""},0,null,null,"SUBMIT Completed and Signed ORDER FORM, along with a PO:\nEMAIL:\n - The State of Ohio:\n     vmware-stateofohio@oar.net\n -  Higher Education:     \n    vmware-higher-education@oar.net\n -  K12:  vmware-k12@oar.net\nFax:        614-292-9390 \nMail:     1224 Kinnear Rd.\n                 Columbus, OH 43212"]
[null,"• vRealize Business Advanced Read-Only Perpetual License for 5 users","• Upgrade: vSphere w/ Ops Mgt ENT to vCloud Suite STD","• vFabric Data Director 2.x License (25 VM pack)",null,null,null,{"$f":"IF(OR(F125=\"\",ISNUMBER(F125)),\"\",VLOOKUP(F125,'Product & Price List'!$D$417:$H$617,2,FALSE))","v":""},null,null,null,{"$f":"IF(OR(F125=\"\",ISNUMBER(F125)),\"\",VLOOKUP(F125,'Product & Price List'!$D$417:$H$617,3,FALSE))","v":""},0]
[null,"• vRealize Business Enterprise (Per CPU)","• Upgrade: vSphere w/ Ops Mgt ENT PLUS to vCloud Suite STD",null,null,null,null,{"$f":"IF(OR(F126=\"\",ISNUMBER(F126)),\"\",VLOOKUP(F126,'Product & Price List'!$D$417:$H$617,2,FALSE))","v":""},null,null,null,{"$f":"IF(OR(F126=\"\",ISNUMBER(F126)),\"\",VLOOKUP(F126,'Product & Price List'!$D$417:$H$617,3,FALSE))","v":""},0]
[null,"• vRealize Business Enterprise Additional User - perpetual license for 5 users","• Upgrade: vSphere STD to vCloud Suite ADV","vREALIZE",null,null,null,{"$f":"IF(OR(F127=\"\",ISNUMBER(F127)),\"\",VLOOKUP(F127,'Product & Price List'!$D$417:$H$617,2,FALSE))","v":""},null,null,null,{"$f":"IF(OR(F127=\"\",ISNUMBER(F127)),\"\",VLOOKUP(F127,'Product & Price List'!$D$417:$H$617,3,FALSE))","v":""},0]
[null,"• vRealize Business Enterprise Foundation Package - perpetual license for 10 users","• Upgrade: vSphere ENT to vCloud Suite ADV","• vRealize Automation Advanced (25 OSI Pack)",null,"  *Maintenance Renewal for VMware licenses purchased through OARnet ONLY.  \n   - All support is provided at VMware's Production Level.",null,null,null,null,null,"SUBTOTAL:",{"$f":"SUM(M118:N127)","v":0}]
[null,"• vRealize Business Enterprise Read-Only Perpetual License for 5 users","• Upgrade: vSphere ENT Plus to vCloud Suite ADV","• vRealize Automation Enterprise (25 OSI Pack)"]
[null,"• vRealize Business Standard (25 OSI Pack)","• Upgrade: vSphere w/ Ops Mgt STD to vCloud Suite ADV","• vRealize Automation Desktop (25 Pack)"]
[null,"• vRealize Business Standard (Per CPU)","• Upgrade:  vSphere w/ Ops Mgt ENT to vCloud Suite ADV","• vRealize Automation ADV Public Cloud Extension (25 OSI pack)"]
[null,"• vRealize Code Stream (Per CPU)","• Upgrade: vSphere w/ Ops Mgt STD to vCloud Suite ENT","• vRealize Automation ENT Public Cloud Extension (25 OSI pack)"]
[null,"• vRealize Code Stream (Per OSI)","• Upgrade: vSphere w/ Ops Mgt ENT to vCloud Suite ENT","• vRealize Business Advanced (Per CPU)",null,null,"ATTACHMENT 2 - PSO Consumption"]
[null,"• vRealize Hyperic Perpetual License (Per Machine)","• Upgrade: vSphere w/ Ops Mgt ENT PLUS to vCloud Suite ENT","• vRealize Business Advanced Additional User - perpetual license for 5 users"]
[null,"• vRealize Operations Standard (25 OSI pack)","• Upgrade: vSphere w/ Ops Mgt ENT Plus to vCloud Suite ADV","• vRealize Business Advanced Foundation Package - perpetual license for 5 users",null,null,"VMWARE TRAINING & CONSULTING FORM"]
[null,"• vRealize Operations Advanced (25 OSI Pack)","• Upgrade: vSphere STD to vCloud Suite ENT","• vRealize Business Advanced Read-Only Perpetual License for 5 users"]
[null,"• vRealize Operations Enterprise (25 OSI Pack)","• Upgrade: vSphere ENT to vCloud Suite ENT","• vRealize Business Enterprise (Per CPU)"]
[null,"• vRealize Operations for Horizon: 10 Concur. User pack","• Upgrade: vSphere ENT PLUS to vCloud Suite ENT","• vRealize Business Enterprise Additional User - perpetual license for 5 users",null,null,"ENTITY NAME:"]
[null,"• vRealize Operations for Horizon: 100 Concurrent User Pack",null,"• vRealize Business Enterprise Foundation Package - perpetual license for 10 users"]
[null,"• vRealize Operations Insight","•••••••••••• vREALIZE •••••••••••• ","• vRealize Business Enterprise Read-Only Perpetual License for 5 users"]
[null,"• vRealize Operations Public Cloud Extension ADV (25 OSI Pack)",null,"• vRealize Business Standard (25 OSI Pack)"]
[null,"• vRealize Operations Public Cloud Extension ENT (25 OSI Pack)","vREALIZE BUSINESS","• vRealize Business Standard (Per CPU)"]
[null,"• vRealize Suite Advanced (2 CPUs)","• Upgrade: vRealize Business STD to ADV  (Per CPU)  ***Upgrade: vRealize Business Standard (Per CPU) tovRealize Business Advanced (Per CPU)","• vRealize Code Stream (Per CPU)",null,null,"Course Title:"]
[null,"• vRealize Suite Advanced (25 OSI Pack)","• Upgrade: vRealize Business STD to ENT (Per CPU)  ***Upgrade:  vRealize Business Standard (Per CPU) to vRealize Business 8 Enterprise (Per CPU)","• vRealize Code Stream (Per OSI)",null,null,"Course SKU/Code:"]
[null,"• vRealize Suite Enterprise (2 CPUs)","• Upgrade: vRealize Business ADV to ENT (Per CPU)  ***Upgrade: vRealize Business Advanced (Per CPU) to vRealize Business Enterprise (Per CPU)","• vRealize Hyperic Perpetual License (Per Machine)",null,null," Total PSOs Required:"]
[null,"• vRealize Suite Enterprise (25 OSI pack)",null,"• vRealize Operations Standard (25 OSI pack)",null,null,"                                    Is the training a public course (open enrollment) or an on-site custom course? (Check one)"]
[null,null,"vREALIZE CLOUD MGMT PLATFORM ENTERPRISE","• vRealize Operations Advanced (25 OSI Pack)"]
[null,"vREALIZE LOG INSIGHT","• Upgrade: ITBusMgtSuite STD to vRealizeCloudMgtENT (25 OSI)  ***Upgrade: IT Business Management Suite 1 Standard to vRealize Suite 6 Enterprise (25 OSI Pack)","• vRealize Operations Enterprise (25 OSI Pack)",null,null,"If a public course, Listt location (City, State):"]
[null,"• vRealize Log Insight (per CPU)","• Upgrade: vC.OpsMgtSuiteSTD to vRealizeCloudMgtENT (25 OSI)  ***Upgrade: vCenter Operations 5.6 Management Suite Standard to vRealize Suite 6 Enterprise (25 OSI Pack)","• vRealize Operations for Horizon: 10 Concur. User pack",null,null,"Training provider (VMware or reseller name):"]
[null,"• vRealize Log Insight (25 OSI pack)","• Upgrade: vC.OpsMgtSuiteADV to vRealizeCloudMgtENT (25 OSI)  ***Upgrade: vCenter Operations 5.6 Management Suite Advanced to vRealize Suite 6 Enterprise (25 OSI Pack)","• vRealize Operations for Horizon: 100 Concurrent User Pack",null,null,"Course Dates:"]
[null,null,"• Upgrade: vC.OpsMgtSuiteENT to vRealizeCloudMgtENT (25 OSI)  ***Upgrade: vCenter Operations 5.6 Management Suite Enterprise to vRealize Suite 6 Enterprise (25 OSI Pack)","• vRealize Operations Insight",null,null,null,"Number of Attendees:"]
[null,"vSAN / STORAGE","• Upgrade: vC.LogInsight perOSI to vRealizeCloudMgtENT (25 OSI)  ***Upgrade: VMware vCenter Log Insight per OSI to vRealize Suite 6 Enterprise (25 OSI Pack)","• vRealize Operations Public Cloud Extension ADV (25 OSI Pack)"]
[null,"• Virtual SAN All Flash for Desktop Add-On 10 Pack (CCU)","• Upgrade: vCloudAutoCtrADVSuite to vRealizeCloudMgtENT (25 OSI) ***Upgrade: vCloud Automation Center 6 Advanced Suite to vRealize Suite 6 Enterprise (25 OSI Pack)","• vRealize Operations Public Cloud Extension ENT (25 OSI Pack)",null,null,null,"COURSE ATTENDEES"]
[null,"• Virtual SAN All Flash for Desktop Add-On 100 Pack (CCU)","• Upgrade: vCloudAutoCtrENTSuite to vRealizeCloudMgtENT (25 OSI) ***Upgrade: vCloud Automation Center Enterprise Suite to vRealize Suite 6 Enterprise (25 OSI Pack)","• vRealize Suite Advanced (25 OSI Pack)",null,null,"Name:"]
[null,"• Virtual SAN All Flash Add-on for 1 processor",null,"• vRealize Suite Advanced (2 CPUs)",null,null,"Email:"]
[null,"• Virtual SAN for 1-Processor","vREALIZE OPERATIONS","• vRealize Suite Enterprise (25 OSI pack)",null,null,"Phone:"]
[null,"• Virtual SAN for Desktop 10-Pack (CCU)","• Upgrade: vRealize Ops STD (25 VM-PK) to vRealize Ops ADV (25 OSI-PK)  ***Upgrade: vRealize Operations Standard (25 VM Pack) to vRealize Operations  Advanced (25 OSI Pack)","• vRealize Suite Enterprise (2 CPUs)"]
[null,"• Virtual SAN for Desktop 100-Pack (CCU)","• Upgrade: vRealize Ops STD (25 VM-PK) to vRealize Ops ENT (25 OSI-PK) ***Upgrade: Realize Ops  STD (25 VM Pack) to vRealize Ops Enterprise (25 OSI Pack)",null,null,null,"Name:"]
[null,null,"• Upgrade: vRealize Ops ADV (25 OSI Pack) to vRealize Ops ENT (25 OSI-PK) ***Upgrade:  vRealize Operations Advanced (25 OSI Pack) to vRealize Operations Enterprise (25 OSI Pack)","vREALIZE LOG INSIGHT",null,null,"Email:"]
[null,"vSPHERE",null,"• vRealize Log Insight (per CPU)",null,null,"Phone:"]
[null,"• vSphere Standard for 1 processor","vREALIZE OPERATIONS INSIGHT","• vRealize Log Insight (25 OSI pack)"]
[null,"• vSphere Enterprise for 1 processor","• Upgrade: vCenter Log Insight (CPU) to vRealize Ops Insight  ***Upgrade: vCenter Log Insight per CPU to vRealize Operations Insight ",null,null,null,"Name:"]
[null,"• vSphere Enterprise Plus for 1 processor","• Upgrade: vCOM ADV Add-on (vSOM) to vRealize Ops Insight  ***Upgrade:  vCenter Operations 5.8.2 Mgmt Suite Advanced Add-On for vSOM to vRealize Operations Insight 6","vSAN / STORAGE",null,null,"Email:"]
[null,"• vSphere w/ Operations Managent Standard for 1 processor",null,"• Virtual SAN All Flash for Desktop Add-On 10 Pack (CCU)",null,null,"Phone:"]
[null,"• vSphere w/ Operations Management Enterprise for 1 processor","vREALIZE PUBLIC CLOUD EXTENSION","• Virtual SAN All Flash for Desktop Add-On 100 Pack (CCU)"]
[null,"• vSphere w/ Operations Management Enterprise Plus for 1 processor","• Upgrade: vRealize Auto Public Cloud Ext (25 OSI pack) ADV to ENT","• Virtual SAN All Flash Add-on for 1 processor"]
[null,null,"• Upgrade: vRealize Automation (25 OSI Pack) ADV to ENT\n***Upgrade: VMware VMware vRealize Automation Advanced (25 OSI Pack) to VMware vRealize Automation Enterprise (25 OSI Pack)","• Virtual SAN for 1-Processor"]
[null,"vSPHERE KITS","• Upgrade: vRealize Ops Public Cloud Extension ADV to ENT\n***Upgrade:  Realize Operations Public Cloud Extension Advanced (25 OSI Pack) to vRealize Operations Public Cloud Extension Enterprise (25 OSI Pack)","• Virtual SAN for Desktop (10 pack) CCU"]
[null,"• vSphere Essentials Plus Kit for 3 hosts (Max 2 processors per host)",null,"• Virtual SAN for Desktop (100 pack) CCU",null,null,"Service Name:"]
[null,"• vSphere w/Operations Management Standard ACCEL Kit 6 processors","vREALIZE SUITE",null,null,null,"Service SKU/Code:"]
[null,"• vSphere w/Operations Management Enterprise ACCEL Kit for 6 processors","• Upgrade: IT Bus Mgt STE STD to vRealize STE ADV (25 OSI Pack) ***Upgrade: IT Business Management Suite 1 Standard to vRealize Suite Advanced (25 OSI Pack)","vSPHERE",null,null," Total PSOs Required:"]
[null,"• vSphere w/Operations Management Enterprise Plus Acceleration Kit (6 proc.)","• Upgrade: vCenter Log Insight to vRealize STE ADV (25 OSI Pack)\n***Upgrade: vCenter Log Insight per OSI to vRealize Suite Advanced (25 OSI Pack)","• vSphere Standard for 1 processor",null,null,"Consulting Date:"]
[null,null,"• Upgrade: vCenter Ops Mgt STE ADV to vRealize STE ADV (25 OSI Pack) ***Upgrade:  vCenter Operations Mgt Suite Advanced to vRealize Suite Advanced (25 OSI Pack)","• vSphere Enterprise for 1 processor"]
[null,"vSPHERE (OTHER)","• Upgrade: vCenter Ops Mgt STE STD to vRealize STE ADV (25 OSI Pack) ***Upgrade:  vCenter Operations Mgt Suite Standard to vRealize Suite Advanced (25 OSI Pack)","• vSphere Enterprise Plus for 1 processor"]
[null,"• vSphere Desktop (100 VM pack)","• Upgrade: vCloud Auto Ctr ADV STE to vRealize STE ADV (25 OSI Pack) ***Upgrade: vCloud Automation Center Advanced Suite to vRealize Suite Advanced (25 OSI Pack)","• vSphere w/ Operations Management Standard (per CPU)"]
[null,"• vSphere Remote Office Branch Office Standard (25 VM pack)","• Upgrade: vRealize BUS STD (25 OSI) to vRealize STE ADV (25 OSI Pack) ***Upgrade: vRealize Business Standard (25 OSI Pack) to vRealize Suite Advanced (25 OSI Pack)","• vSphere w/ Operations Management Enterprise (per CPU)",null,null,"      Click here for a current list of available training courses:"]
[null,"• vSphere Remote Office Branch Office Advanced (25 VM pack)","• Upgrade: vROPS ADV to vRealize Suite ADV (25 OSI Pack)  ***Upgrade: vRealize Operations Advanced (25 OSI Pack) to vRealize Suite Advanced (25 OSI PK)","• vSphere w/ Operations Management Enterprise Plus (per CPU)",null,null,"Or go to:  https://mylearn.vmware.com"]
[null,null,"• Upgrade: vROPS STE STD to vRealize STE ADV (25 OSI Pack)"]
[null,"WORKSPACE SUITE","• Upgrade: vRealize STE ADV to vRealize STE ENT (25 OSI Pack) ","vSPHERE KITS"]
[null,"• Workspace Suite On Premise, Perpetual: 10 Named Users",null,"• vSphere Essentials Plus Kit (3 hosts)"]
[null,"• Workspace Suite On Premise, Perpetual: 100 Named Users","••••••••••••vSAN / STORAGE •••••••••••• ","• vSphere w/Operations Management Standard ACCEL Kit 6 processors"]
[null,null,null,"• vSphere w/Operations Management Enterprise ACCEL Kit for 6 processors"]
[null,"WORKSTATION","VIRTUAL SAN BUNDLE","• vSphere w/Operations Management Enterprise Plus Acceleration Kit (6 proc.)"]
[null,"• Workstation - Windows/Linux , ESD (SnS is optional)","• Upgrade: vSphere Storage Appliance to Virtual SAN Bundle"]
[null,null,null,"vSPHERE (OTHER)"]
[null,null,"•••••••••••• vSPHERE •••••••••••• ","• vSphere Desktop (100 VM pack)"]
[null,null,null,"• vSphere Remote Office Branch Office Standard (25 VM pack)"]
[null,null,"vSPHERE ENTERPRISE","• vSphere Remote Office Branch Office Advanced (25 VM pack)"]
[null,null,"• Upgrade: vSphere STD to ENT for 1 Processor"]
[null,null,null,"WORKSPACE SUITE"]
[null,null,"vSPHERE ENTERPRISE PLUS","• Workspace Suite On Premise, Perpetual: 10 Named Users"]
[null,null,"• Upgrade: vSphere STD to ENT PLUS for 1 processor","• Workspace Suite On Premise, Perpetual: 100 Named Users"]
[null,null,"• Upgrade: vSphere ENT to ENT PLUS for 1 processor"]
[null,null,null,"WORKSTATION"]
[null,null,"vSPHERE w/ OPS MGMT STANDARD","• Workstation - Windows/Linux (SnS is optional)"]
[null,null,"• Upgrade: vSphere STD to vSphere w/ Ops Mgt STD for 1 Processor"]
[null,null,null,"DISCONTINUED PRODUCTS"]
[null,null,"vSPHERE w/ OPS MGMT ENTERPRISE","• Horizon Mirage 10 Pack"]
[null,null,"• Upgrade: vSphere STD to vSphere w/ Ops Mgt ENT for 1 Processor","• Horizon Mirage 100 Pack"]
[null,null,"• Upgrade: vSphere ENT to vSphere w/ Ops Mgt ENT for 1 Processor","• Horizon View 5 Bundle: 10 Pack"]
[null,null,"• Upgrade: vSphere w/ Ops Mgt STD to ENT for 1 Processor","• Horizon View 5 Bundle: 100 Pack"]
[null,null,null,"• Horizon View 5 Add-On: 10 Pack"]
[null,null,"vSPHERE w/ OPS MGMT ENTERPRISE PLUS","• Horizon View 5 Add-On: 100 Pack"]
[null,null,"• Upgrade: vSphere STD to vSphere w/ Ops Mgt ENT PLUS for 1 Processor","• Horizon Workspace 10 Pack"]
[null,null,"• Upgrade: vSphere ENT to vSphere w/ Ops Mgt ENT PLUS for 1 Processor","• Horizon Workspace 100 Pack"]
[null,null,"• Upgrade: vSphere ENT PL to vSphere w/ Ops Mgt ENT PLUS for 1 Processor","• Mirage Bundle for 10 named Users"]
[null,null,"• Upgrade: vSphere w/ Ops Mgt STD to ENT PLUS for 1 Processor","• ThinApp Client"]
[null,null,"• Upgrade: vSphere w/ Ops Mgt ENT to ENT PLUS for 1 Processor","• vCenter Server Heartbeat"]
[null,null,null,"• vCenter Site Recovery Manager (per CPU)"]
[null,null,"vSPHERE w/ OPS MGMT STANDARD ACCELERATION KIT","• vCloud Director (25 VM Pack)"]
[null,null,"• Upgrade: vSphereEssent to vSphere w/OpsMgmt STD Accel Kit","• vCloud Networking and Security Standard (25 VM Pack) - EOSL 09/19/2016"]
[null,null,"• Upgrade: vSphereEssentPlus to vSphere w/OpsMgmt STD Accel Kit","• vCloud Networking and Security Advanced (25 VM Pack) - EOSL 09/19/2016"]
[null,null,null,"• vSphere w/ Operations Mgmt Enterprise Acceleration Kit  - Soft Bundle "]
[null,null,"vSPHERE w/ OPS MGMT ENTERPRISE ACCELERATION KIT","• vSphere w/ Operations Mgmt Enterprise Plus Acceleration Kit - Soft Bundle "]
[null,null,"• Upgrade: vSphereEssent to vSphere w/OpsMgt ENT Accel Kit for 6 Processors"]
[null,null,"• Upgrade:vSphereEssentPlus to vSphere w/OpsMgt ENTAccel Kit for 6 Processors"]
[]
[null,null,"vSPHERE w/ OPS MGMT ENTERPRISE PLUS ACCELERATION KIT"]
[null,null,"• Upgrade: vSphereEssent to vSphere w/OpsMgt ENTPL Accel Kit"]
[null,null,"• Upgrade: vSphereEssentPl to vSphere w/OpsMgtENTPL Accel Kit"]
[]
[null,null,"vSPHERE ESSENTIALS PLUS"]
[null,null,"• Upgrade: vSphere Essentials to Essentials Plus Kit - for 3 hosts (Max 2 processors per host)"]
[]
[null,null,"vSPHERE ESSENTIALS PLUS for RETAIL & BRANCH OFFICES"]
[null,null,"• Upgrade: vSphere Essentials to Essentials Plus Kit - for 3 hosts (Max 2 processors per host)"]
[]
[null,null,"vSPHERE REMOTE/BRANCH OFFICE"]
[null,null,"• Upgrade: vSphereRemoteBranchOffice STD to ADV (25 VM Pack)"]
[]
[null,null,"•••••••••••• WORKSTATION •••••••••••• "]
[]
[null,null,"WORKSTATION"]
[null,null,"• Upgrade: Workstation Pro 12 Upgrade from Vers: 10.x/11.x/or Player 6 Plus for Linux/Windows, ESD  ***Upgrade:  Workstation Pro 12 upgrade from vers:  10.X\\11.x/or Player 6 Plus for Linux and Windows, ESD"]
[null,null,"• Upgrade: Workstation Pro 12 Upgrade from Player Pro 7 for Linux/Windows, ESD  ***Upgrade:  Workstation Pro 12 Upgrade from Player 7 Pro for Linux and Windows, ESD"]

{"sheet":"Product & Price List","index":1,"n_rows":616,"n_cols":12,"rows_kept":616,"cut":false,"hidden":false,"merged":[[416,3,416,5],[1,6,1,7],[2,6,2,7],[3,6,3,7],[5,6,5,7],[7,6,7,7],[9,6,9,7],[10,6,10,7],[11,6,11,7],[12,6,12,7],[190,3,190,7],[15,3,15,7]]}
[]
[null,null,null,"NEW PRODUCTS","Airwatch","ITBM","ThinApp",null,null,"vRealize","vSphere (Other)"]
[null,null,null,"GO TO (Product Name/Family):","APP Volume","Mirage","User Evironment Mgr",null,null,"vRealize Log Insight","Workspace Suite"]
[null,null,null,null,"Continuent","NSX / Nicira","vCenter ",null,null,"vSAN / Storage","Workstation"]
[null,null,null,null,"Fusion","Pivotal","vCloud",null,null,"vSphere "]
[null,null,null,null,"Horizon","Player","vFabric",null,null,"vSphere Kits"]
[]
[null,null,null,"UPGRADE PRODUCTS","Airwatch","NSX/NICIRA","vRealize",null,null,"MAINTENANCE RENEWAL",null,"   NOTES:"]
[null,null,null,null,"APP Volume","Pivotal","vSAN/Storage",null,null,"GO TO RENEWALS"]
[null,null,null,"GO TO (Product Name/Family):","Continuent","Player","vSphere",null,null,"(Existing OARnet licenses ONLY.)",null,"   All product support under this contract is at the VMware Production Level."]
[null,null,null,null,"Fusion","User Environment Mgr","Workstation",null,null,null,null,"   All products require the license and maintenance to be purchased from OARnet."]
[null,null,null,null,"Horizon","vCenter"]
[null,null,null,null,"ITBM","vCloud"]
[]
[]
[null,null,null,"New VMware Products & Pricing (and Maintenance)"]
[null,null,null,"Product","Product Code","SnS Code","License Fee","1 yr SnS Fee"]
[]
[null,null,null,"AIRWATCH"]
[null,null,null,"• AirWatch by VMware Secure Content Locker Collaborate","V-MCC-PL-ANY-DEV-C","V-MCC-MF-ANY-DEV-C",18.5,6.5,null,"NOTE:  Minimum initial purchase quantity of 25."]
[null,null,null,"• AirWatch by VMware Mgt Suite for Laptops","V-MS-PL-DEV-LT-C","V-MS-MF-DEV-LT-C",18.5,6.5,null,"NOTE:  Minimum initial purchase quantity of 25."]
[null,null,null,"• AirWatch by VMware Mgt Suite for Rugged Devices","V-MS-PL-DEV-RG-C","V-MS-MF-DEV-RG-C",18.5,6.5,null,"NOTE:  Minimum initial purchase quantity of 25."]
[null,null,null,"• AirWatch by VMware Green Mgt Suite","V-GMS-PL-DEV-C","V-GMS-MF-DEV-C",18.5,6.5,null,"NOTE:  Minimum initial purchase quantity of 25."]
[null,null,null,"• AirWatch by VMware Orange Mgt Suite","V-OMS-PL-DEV-C","V-OMS-MF-DEV-C",25.9,8.4499999999999993,null,"NOTE:  Minimum initial purchase quantity of 25."]
[null,null,null,"• AirWatch by VMware Blue Mgt Suite Perpetual, One Time Fee / Device","V-BMS-PL-DV2-C"," BMS15-PL-DEV",33.299999999999997,11.05,null,"NOTE:  Minimum initial purchase quantity of 25."]
[null,null,null,"• AirWatch by VMware Yellow Mgt Suite - Perpetual, One Time Fee / Device","V-YMS-PL-DV2-C","YMS15-PL-DEV",48.1,16.25,null,"NOTE:  Minimum initial purchase quantity of 25."]
[]
[null,null,null,"APP VOLUME"]
[null,"NEW",null,"• App Volumes 10 Pack (CCU)","CV-CCU-10-C","CV-CCU-10-P-SSS-C",555,185.25]
[null,"NEW",null,"• App Volumes 100 Pack (CCU)","CV-CCU-100-C","CV-CCU-100-P-SSS-C",5550,1852.5]
[]
[null,null,null,"CONTINUENT"]
[null,"NEW",null,"• Continuent for Analytics & Big Data - Per Cluster License","CN-ABD-C","CN-ABD-P-SSS-C",33300,11115]
[null,"NEW",null,"• Continuent for Clustering - Per Database Server License","CN-CP-C","CN-CP-P-SSS-C",11100,3705]
[null,"NEW",null,"• Continuent for Disaster Recovery - Per Database Server License","CN-DR-C","CN-DR-P-SSS-C",5550,1852.5]
[null,"NEW",null,"• Continuent for Replication - Per Database Server License","CN-RP-C","CN-RP-P-SSS-C",11100,3705]
[]
[null,null,null,"FUSION"]
[null,"NEW",null,"• Fusion Professional Edition, ESD  (SnS is optional)","FUS8-PRO-C","FUS-PRO-P-SSS-C",48.1,16.25]
[]
[null,null,null,"HORIZON"]
[null,null,null,"• Horizon Application Management Bundle: 10 Pack (CCU)","HZ-APMC-10-C","HZ-APMC-10-P-SSS-C",666,222.3]
[null,null,null,"• Horizon Application Management Bundle: 100 Pack (CCU)","HZ-APMC-100-C","HZ-APMC-100-P-SSS-C",6660,2223]
[null,null,null,"• Horizon DaaS On Premise Platform: 100-pack","HZ-DS-100-C","HZ-DS-100-P-SSS-C",10175,3396.25]
[null,null,null,"• Horizon FLEX 10 pack (Per Device)","HZ-FLX-10-C","HZ-FLX-10-P-SSS-C",925,308.75]
[null,null,null,"• Horizon View Advanced Edition (10 pack) (CCU)","HZ-ADVC-10-C","HZ-ADVC-10-P-SSS-C",1480,494]
[null,null,null,"• Horizon View Advanced Edition (100 pack) (CCU)","HZ-ADVC-100-C","HZ-ADVC-100-P-SSS-C",14800,4940]
[null,null,null,"• Horizon View Advanced Edition (10 pack) (Named Users)","HZ-ADVN-10-C","HZ-ADVN-10-P-SSS-C",925,308.75]
[null,null,null,"• Horizon View Advanced Edition (100 pack) (Named Users)","HZ-ADVN-100-C","HZ-ADVN-100-P-SSS-C",9250,3087.5]
[null,"NEW",null,"• Horizon View Enterprise Edition (10 pack) (CCU)","HZ-ENTC-10-C","HZ-ENTC-10-P-SSS-C",1850,617.5]
[null,"NEW",null,"• Horizon View Enterprise Edition (100 pack) (CCU)","HZ-ENTC-100-C","HZ-ENTC-100-P-SSS-C",18500,6175]
[null,null,null,"• Horizon View Enterprise Edition (10 pack) (Named Users)","HZ-ENTN-10-C","HZ-ENTN-10-P-SSS-C",1110,370.5]
[null,"NEW",null,"• Horizon View Enterprise Edition (100 pack) (Named Users)","HZ-ENTN-100-C","HZ-ENTN-100-P-SSS-C",11100,3705]
[null,null,null,"• Horizon View Standard Add-On: 10 pack (CCU)","HZ-STD-A10-C","HZ-STD-A10-P-SSS-C",703,234.65]
[null,null,null,"• Horizon View Standard Add-On: 100 pack (CCU)","HZ-STD-A100-C","HZ-STD-A100-P-SSS-C",7030,2346.5]
[null,null,null,"• Horizon View Standard Edition (10 pack) (CCU)","HZ-STD-10-C","HZ-STD-10-P-SSS-C",925,308.75]
[null,null,null,"• Horizon View Standard Edition (100 pack) (CCU)","HZ-STD-100-C","HZ-STD-100-P-SSS-C",9250,3087.5]
[null,null,null,"• Horizon Workspace Portal: 10 pack","WSP-10-C","WSP-10-P-SSS-C",185,61.75]
[null,null,null,"• Horizon Workspace Portal: 100 pack","WSP-100-C","WSP-100-P-SSS-C",1850,617.5]
[]
[null,null,null,"IT BUSINESS MANAGEMENT (ITBM)"]
[null,null,null,"• IT Business Mgt Foundation package","DF-ITBM-FND-C","DF-ITBM-FND-P-SSS-C",166500,55575]
[null,null,null,"• IT Business Mgt Additional User","DF-ITBM-ADD-C","DF-ITBM-P-SSS-C",27750,9262.5]
[null,null,null,"• IT Business Mgt Read-Only","DF-ITBM5-C","DF-ITBM5-P-SSS-C",8325,2778.75]
[null,null,null,"• IT Financial Mgt Foundation package","DF-ITFM-FND-C","DF-ITFM-FND-P-SSS-C",111000,37050]
[null,null,null,"• IT Financial Mgt Additional User","DF-ITFM-ADD-C","DF-ITFM-ADD-P-SSS-C",22200,7410]
[null,null,null,"• IT Financial Mgt Read-Only","DF-ITFM5-C","DF-ITFM5-P-SSS-C",8325,2778.75]
[null,"NEW",null,"• vRealize Business Advanced Additional User - perpetual license for 5 users","BM-ADV-AD-C","BM-ADV-AD-PSUP-C",22200,7410]
[null,"NEW",null,"• vRealize Business Advanced Foundation Package - perpetual license for 5 users","BM-ADV-FND-C","BM-ADV-FND-PSUP-C",111000,37050]
[null,"NEW",null,"• vRealize Business Advanced Read-Only Perpetual License for 5 users","BM-ADV-RO-C","BM-ADV-RO-PSUP-C",8325,12.35]
[null,"NEW",null,"• vRealize Business Enterprise Additional User - perpetual license for 5 users","BM-ENT-AD-C","BM-ENT-AD-PSUP-C",27750,9262.5]
[null,"NEW",null,"• vRealize Business Enterprise Foundation Package - perpetual license for 10 users","BM-ENT-FND-C","BM-ENT-FND-PSUP-C",61050,20377.5]
[null,"NEW",null,"• vRealize Business Enterprise Read-Only Perpetual License for 5 users","BM-ENT-RO-C","BM-ENT-RO-PSUP-C",8325,12.35]
[]
[null,null,null,"MIRAGE"]
[null,"NEW",null,"• Mirage for Physical: 10 Pack","MGP-10-C","MGP-10-P-SSS-C",555,185.25]
[null,"NEW",null,"• Mirage for Physical: 100 Pack","MGP-100-C","MGP-100-P-SSS-C",5550,1852.5]
[]
[null,null,null,"NSX / NICIRA"]
[null,"NEW",null,"• NSX for Multi-Hypervisor per Processor","NX-MHV-C","NX-MHV-3P-SSS-C",2588.15,863.85]
[null,null,null,"• NSX vSphere  ","NX-VS-C","NX-VS-P-SSS-C",2218.15,740.35]
[null,null,null,"• NSX vSphere - vCloud Suite Add-on","NX-CLAD-C","NX-CLAD-P-SSS-C",1293.1500000000001,431.6]
[]
[null,null,null,"PIVOTAL"]
[null,"NEW",null,"• Pivotal App Suite v2 Perpetual License (1 core)","PV-APP-STE-C","PV-APP-STE-P-SSS-C",333,111.15]
[null,"NEW",null,"• Pivotal GemFire XD (Per Core)","PV-GFXD-CPU-C","PV-GFXD-CPU-P-SSS-C",925,308.75]
[]
[null,null,null,"PLAYER"]
[null,"NEW",null,"• Player Pro","PLAY7-PRO-C","PLAY7-PRO-P-SSS-C",55.5,18.200000000000003]
[]
[null,null,null,"THINAPP"]
[null,null,null,"• ThinApp Suite","THIN5-STE-C","THIN5-STE-P-SSS-C",1850,617.5]
[null,null,null,"• ThinApp Client (100 pack)","THIN5-100PK-C","THIN5-100PK-P-SSS-C",703,234.65]
[]
[null,null,null,"USER ENVIRONMENT MANAGER"]
[null,"NEW",null,"• User Environment Manager: 10 Pack (CCU)","UEM-CCU-10-C","UEM-CCU-10-P-SSS-C",185,61.75]
[null,"NEW",null,"• User Environment Manager: 10 Pack (Named Users)","UEM-NU-10-C","UEM-NU-10-P-SSS-C",111,37.049999999999997]
[null,"NEW",null,"• User Environment Manager: 100 Pack (CCU)","UEM-CCU-100-C","UEM-CCU-100-P-SSS-C",1850,617.5]
[null,"NEW",null,"• User Environment Manager: 100 Pack (Named Users)","UEM-NU-100-C","UEM-NU-100-P-SSS-C",1110,370.5]
[]
[null,null,null,"vCENTER "]
[null,null,null,"• vCenter Configuration Manager Workstation - Linux/Windows","VC-CMW-C","VC-CMW-P-SSS-C",14.8,5.2]
[null,null,null,"• vCenter Operations Management pack for EPIC","VC-EPIC-C","VC-EPIC-P-SSS-C",22200,7410]
[null,null,null,"• vCenter Server Foundation for vSphere up to 3 hosts (Per Instance)","VCS6-FND-C","VCS6-FND-P-SSS-C",553.15,184.6,null,"NOTE:  For 3 hosts.  Max 2 processors per host."]
[null,null,null,"• vCenter Server Standard for vSphere 6 (Per Instance)","VCS6-STD-C","VCS6-STD-P-SSS-C",1835.66,811.85]
[null,null,null,"• vCenter Site Recovery Manager Standard (25 VM pack)","VC-SRM6-25S-C","VC-SRM6-25S-P-SSS-C",1803.75,601.9]
[null,null,null,"• vCenter Site Recovery Manager Enterprise (25 VM pack)","VC-SRM6-25E-C","VC-SRM6-25E-P-SSS-C",4578.75,1528.15]
[]
[null,null,null,"vCLOUD"]
[null,null,null,"• vCloud Automation Center Development Kit - per Instance","CA6-DEVK-C","CA6-DEVK-P-SSS-C",7400,2470]
[null,null,null,"• vCloud Suite Standard","CL6-STD-C","CL6-STD-P-SSS-C",1848.15,616.85]
[null,null,null,"• vCloud Suite Advanced","CL6-ADV-C","CL6-ADV-P-SSS-C",2773.15,925.6]
[null,null,null,"• vCloud Suite Enterprise","CL6-ENT-C","CL6-ENT-P-SSS-C",4253.1499999999996,1419.6000000000001]
[]
[null,null,null,"vFABRIC"]
[null,null,null,"• vFabric Data Director 2.x License (25 VM pack)","VF-DD2-25VM-C","VF-DD2-25VM-P-SSS-C",6937.5,2315.9500000000003]
[]
[null,null,null,"vREALIZE"]
[null,null,null,"• vRealize Automation Advanced (25 OSI Pack)","CA6-ADV25-C","CA6-ADV25-P-SSS-C",3700,1235,null,"NOTE:  Minimum initial purchase quantity of 4 (100 managed systems)."]
[null,null,null,"• vRealize Automation Enterprise (25 OSI Pack)","CA6-ENT25-C","CA6-ENT25-P-SSS-C",7168.75,2392.65]
[null,null,null,"• vRealize Automation Desktop (25 Pack)","CA6-AUTDT25-C","CA6-AUTDT25-P-SSS-C",1230.25,410.8]
[null,null,null,"• vRealize Automation ADV Public Cloud Extension (25 OSI pack)","VR-AT-ADV25-C","VR-AT-ADV25-P-SSS-C",1850,617.5]
[null,null,null,"• vRealize Automation ENT Public Cloud Extension (25 OSI pack)","VR-AT-ENT25-C","VR-AT-ENT25-P-SSS-C",3653.75,1219.4000000000001]
[null,"NEW",null,"• vRealize Business Advanced (Per CPU)","VR6-BADV-C","VR6-BADV-P-SSS-C",832.5,278.2]
[null,"NEW",null,"• vRealize Business Advanced Additional User - perpetual license for 5 users","BM-ADV-AD-C","BM-ADV-AD-PSUP-C",22200,7410]
[null,"NEW",null,"• vRealize Business Advanced Foundation Package - perpetual license for 5 users","BM-ADV-FND-C","BM-ADV-FND-PSUP-C",111000,37050]
[null,"NEW",null,"• vRealize Business Advanced Read-Only Perpetual License for 5 users","BM-ADV-RO-C","BM-ADV-RO-PSUP-C",8325,12.35]
[null,"NEW",null,"• vRealize Business Enterprise (Per CPU)","VR6-BENT-C","VR6-BENT-P-SSS-C",1248.75,416.65000000000003]
[null,"NEW",null,"• vRealize Business Enterprise Additional User - perpetual license for 5 users","BM-ENT-AD-C","BM-ENT-AD-PSUP-C",27750,9262.5]
[null,"NEW",null,"• vRealize Business Enterprise Foundation Package - perpetual license for 10 users","BM-ENT-FND-C","BM-ENT-FND-PSUP-C",61050,20377.5]
[null,"NEW",null,"• vRealize Business Enterprise Read-Only Perpetual License for 5 users","BM-ENT-RO-C","BM-ENT-RO-PSUP-C",8325,12.35]
[null,"NEW",null,"• vRealize Business Standard (25 OSI Pack)","VR6-BSTD25-C","VR6-BSTD25-P-SSS-C",1850,617.5]
[null,"NEW",null,"• vRealize Business Standard (Per CPU)","VR6-BSTD-C","VR6-BSTD-P-SSS-C",555,185.25]
[null,"NEW",null,"• vRealize Code Stream (Per CPU)","VR-CODE-CPU-C","VR-CODE-CPU-P-SSS-C",2775,926.25]
[null,"NEW",null,"• vRealize Code Stream (Per OSI)","VR-CODE-OSI-C","VR-CODE-OSI-P-SSS-C",462.5,154.70000000000002]
[null,"NEW",null,"• vRealize Hyperic Perpetual License (Per Machine)","VF-HYPM5-C","VF-HYPM5-P-SSS-C",133.19999999999999,44.2]
[null,null,null,"• vRealize Operations Standard (25 OSI pack)","VR6-OSTD25-C","VR6-OSTD25-P-SSS-C",1156.25,386.1]
[null,null,null,"• vRealize Operations Advanced (25 OSI Pack)","VR6-OADV25-C","VR6-OADV25-P-SSS-C",2312.5,772.2]
[null,null,null,"• vRealize Operations Enterprise (25 OSI Pack)","VR6-OENT25-C","VR6-OENT25-P-SSS-C",5550,1852.5]
[null,"NEW",null,"• vRealize Operations for Horizon: 10 Concur. User pack","VR6-VU10-C","VR6-VU10-P-SSS-C",277.5,92.95]
[null,"NEW",null,"• vRealize Operations for Horizon: 100 Concurrent User Pack","VR6-VU100-C","VR6-VU100-P-SSS-C",2775,926.25]
[null,null,null,"• vRealize Operations Insight","VR-OIST-BUN-C","VR-OIST-BUN-P-SSS-C",740,247]
[null,"NEW",null,"• vRealize Operations Public Cloud Extension ADV (25 OSI Pack)","VR6-PCADV25-C","VR6-PCADV25-P-SSS-C",1850,617.5]
[null,"NEW",null,"• vRealize Operations Public Cloud Extension ENT (25 OSI Pack)","VR6-PCENT25-C","VR6-PCENT25-P-SSS-C",3653.75,1219.4000000000001]
[null,"NEW",null,"• vRealize Suite Advanced (2 CPUs)","VR-2CPU-ADV-C","VR-2CPU-ADV-P-SSS-C",4255,1420.25]
[null,"NEW",null,"• vRealize Suite Advanced (25 OSI Pack)","VR-STE-ADV-C","VR-STE-ADV-P-SSS-C",6243.75,2083.9]
[null,"NEW",null,"• vRealize Suite Enterprise (2 CPUs)","VR-2CPU-ENT-C","VR-2CPU-ENT-P-SSS-C",7363,2457.65]
[null,"NEW",null,"• vRealize Suite Enterprise (25 OSI pack)","VR-CMP-ENT-C","VR-CMP-ENT-P-SSS-C",9203.75,3071.9]
[]
[null,null,null,"vREALIZE LOG INSIGHT"]
[null,null,null,"• vRealize Log Insight (per CPU)","VC-LIS-CPU-C","VC-LIS-CPU-P-SSS-C",555,185.25]
[null,null,null,"• vRealize Log Insight (25 OSI pack)","VC-LIS-25-C","VC-LIS-25-P-SSS-C",1850,617.5]
[]
[null,null,null,"vSAN / STORAGE"]
[null,"NEW",null,"• Virtual SAN All Flash for Desktop Add-On 10 Pack (CCU)","ST6-VF-A10-C","ST6-VF-A10-P-SSS-C",111,37.049999999999997]
[null,"NEW",null,"• Virtual SAN All Flash for Desktop Add-On 100 Pack (CCU)","ST6-VF-A100-C","ST6-VF-A100-P-SSS-C",1110,370.5]
[null,"NEW",null,"• Virtual SAN All Flash Add-on for 1 processor","ST6-VF-AD-C","ST6-VF-AD-P-SSS-C",553.15,184.6]
[null,null,null,"• Virtual SAN for 1-Processor","ST6-VSAN-C","ST6-VSAN-P-SSS-C",923.15,308.10000000000002]
[null,null,null,"• Virtual SAN for Desktop 10-Pack (CCU)","ST6-VSDT10-C","ST6-VSDT10-P-SSS-C",185,61.75]
[null,null,null,"• Virtual SAN for Desktop 100-Pack (CCU)","ST6-VSDT100-C","ST6-VSDT100-P-SSS-C",1850,617.5]
[]
[null,null,null,"vSPHERE"]
[null,null,null,"• vSphere Standard for 1 processor","VS6-STD-C","VS6-STD-P-SSS-C",368.15,122.85000000000001]
[null,null,null,"• vSphere Enterprise for 1 processor","VS6-ENT-C","VS6-ENT-P-SSS-C",1056.56,467.35]
[null,null,null,"• vSphere Enterprise Plus for 1 processor","VS6-EPL-C","VS6-EPL-P-SSS-C",1284.4100000000001,568.1]
[null,null,null,"• vSphere w/ Operations Managent Standard for 1 processor","VS6-OSTD-C","VS6-OSTD-P-SSS-C",645.65,215.8]
[null,null,null,"• vSphere w/ Operations Management Enterprise for 1 processor","VS6-OENT-C","VS6-OENT-P-SSS-C",1341.25,447.85]
[null,null,null,"• vSphere w/ Operations Management Enterprise Plus for 1 processor","VS6-OEPL-C","VS6-OEPL-P-SSS-C",1570.65,524.55000000000007]
[]
[null,null,null,"vSPHERE KITS"]
[null,null,null,"• vSphere Essentials Plus Kit for 3 hosts (Max 2 processors per host)","VS6-ESP-KIT-C","VS6-ESP-KIT-P-SSS-C",1663.15,555.09999999999991,null,"NOTE:  Max 3 hosts, 2 processors per host."]
[null,null,null,"• vSphere w/Operations Management Standard ACCEL Kit 6 processors","VS6-OSTD-AK-C","VS6-OSTD-AK-P-SSS-C",3698.15,1234.3499999999999]
[null,null,null,"• vSphere w/Operations Management Enterprise ACCEL Kit for 6 processors","VS6-OENT-AK-C","VS6-OENT-AK-P-SSS-C",7213.15,2407.6]
[null,null,null,"• vSphere w/Operations Management Enterprise Plus Acceleration Kit (6 proc.)","VS6-OEPL-AK-C","VS6-OEPL-AK-P-SSS-C",8693.15,2901.6]
[]
[null,null,null,"vSPHERE (OTHER)"]
[null,null,null,"• vSphere Desktop (100 VM pack)","VS6-DT100VM-C","VS6-DT100VM-P-SSS-C",2405,802.75]
[null,null,null,"• vSphere Remote Office Branch Office Standard (25 VM pack)","VS6-RBSTD25-C","VS6-RBSTD25-P-SSS-C",1110,370.5]
[null,null,null,"• vSphere Remote Office Branch Office Advanced (25 VM pack)","VS6-RBADV25-C","VS6-RBADV25-P-SSS-C",1665,555.75]
[]
[null,null,null,"WORKSPACE SUITE"]
[null,"NEW",null,"• Workspace Suite On Premise, Perpetual: 10 Named Users","WSP-STE-10-C","WSP-STE-10-P-SSS-C",1813,605.15]
[null,"NEW",null,"• Workspace Suite On Premise, Perpetual: 100 Named Users","WSP-STE-100-C","WSP-STE-100-P-SSS-C",18130,6051.5]
[]
[null,null,null,"WORKSTATION"]
[null,null,null,"• Workstation - Windows/Linux , ESD (SnS is optional)","WS12-LW-CE","WS-P-SSS-C",92.13000000000001,30.55]
[]
[]
[]
[]
[null,null,null,"UPGRADE Products & Pricing (and Maintenance)"]
[null,null,null,"Product","Product Code","SnS Code","License Fee","1 yr SnS Fee"]
[]
[null,null,null,"••••••••••••  AIRWATCH •••••••••••• "]
[]
[null,null,null,"AIRWATCH SERCURE CONTENT LOCKER COLLABORATE"]
[null,null,null,"• Upgrade: AirWatchSecContentLockView to S.C.L. Collaborate","V-UPG-MCV-PL-MCC-C","V-UPG-MCV-MF-MCC-C",12.21,6.5]
[]
[null,null,null,"AIRWATCH ORANGE MGMT SUITE"]
[null,null,null,"• Upgrade: AirWatch Green Mgmt Suite to Orange Mgmt Suite","V-UPG-GMS-PL-OMS-C","V-UPG-GMS-MF-OMS-C",8.14,8.4499999999999993]
[]
[null,null,null,"AIRWATCH BLUE MGMT SUITE"]
[null,null,null,"• Upgrade: AirWatch Green Mgt STE to Blue Mgt STE - Perpetual, 1XFee/Device","V-UPG-GM2-PL-BMS-C","UPG15-GMS-PL-BMS",16.28,11.05]
[null,null,null,"• Upgrade: AirWatch Orange Mgt STE to Blue Mgt STE - Perpetual, 1XFee/Device","V-UPG-OM2-PL-BMS-C","UPG15-OMS-PL-BMS",8.14,11.05]
[]
[null,null,null,"AIRWATCH YELLOW MGMT SUITE"]
[null,null,null,"• Upgrade: AirWatchMobileDev&ContentLockerView to Yellow Mgt STE - Perpl, 1X Fee/Dev  ***Upgrade from Mobile Device Mgt & AirWatch Content Locker View to Yellow Mgt Suite -\n     Perpetual, One Time Fee / Device","V-UPG-MDCV2-PYM-C","UPG15-MDMMCV-PL-YMS",24.42,16.25]
[null,null,null,"• Upgrade:  AirWatch Green Mgt STE to Yellow Mgt STE - Perpetual, 1XFee/Device","V-UPG-GM2-PL-YMS-C","UPG15-GMS-PL-YMS",32.56,16.25]
[null,null,null,"• Upgrade: AirWatch Orange Mgt STE to Yellow Mgt STE - Perpetual, 1X ee/Device","V-UPG-OM2-PL-YMS-C","UPG15-OMS-PL-YMS",24.42,16.25]
[null,null,null,"• Upgrade: AirWatch Blue Mgt STE to Yellow Mgt STE - Perpetual, 1XFee/Device","V-UPG-BM2-PL-YMS-C","UPG15-BMS-PL-YMS",16.28,16.25]
[]
[null,null,null,"••••••••••••  APP VOLUME •••••••••••• "]
[]
[null,null,null,"••••••••••••  CONTINUENT •••••••••••• "]
[]
[null,null,null,"••••••••••••  FUSION •••••••••••• "]
[]
[null,null,null,"FUSION"]
[null,"NEW",null,"• Upgrade: Fusion 6.x, 6.xPro, 7.x, 7.xPro, & Fusion 8 to Fusion 8 Pro, ESD","FUS8-PRO-UG-C","FUS-PRO-P-SSS-C",25.9,16.25]
[]
[null,null,null,"•••••••••••• HORIZON •••••••••••• "]
[]
[null,null,null,"HORIZON VIEW STANDARD ADD-ON"]
[null,null,null,"• Upgrade: ThinAppClient to Horizon View STD Add-On (10pack)","HZ-CL-STDA10-UG-C","HZ-STD-A10-P-SSS-C",629,234.65]
[null,null,null,"• Upgrade: HorizonViewENT Add-on to ViewSTDAdd-On (10pack)","HZ-ENTA-STDA10-UG-C","HZ-STD-A10-P-SSS-C",370,234.65]
[null,null,null,"• Upgrade: HorizonViewENT Add-on to ViewSTDAdd-On (100pack)","HZ-ENTA-STDA100-UG-C","HZ-STD-A100-P-SSS-C",3700,2346.5]
[]
[null,null,null,"HORIZON ADVANCED (NAMED USERS)"]
[null,null,null,"• Upgrade: Workspace to HorizonADV (10pk)(Named Users)","HZ-WSP-ADVN-10-UG-C","HZ-ADVN-10-P-SSS-C",407,308.75]
[null,null,null,"• Upgrade: HorizonMirage to HorizonADV (10pk)(Named Users)","HZ-MRG-ADVN-10-UG-C","HZ-ADVN-10-P-SSS-C",407,308.75]
[null,"NEW",null,"• Upgrade: MiragePhysical to HorizonADV (10pk)(Named Users)","HZ-MGP-ADVN-10-UG-C","HZ-ADVN-10-P-SSS-C",407,308.75]
[null,null,null,"• Upgrade: Workspace to HorizonADV (100pk)(Named Users)","HZ-WSP-ADVN-100-UG-C","HZ-ADVN-100-P-SSS-C",4070,3087.5]
[null,null,null,"• Upgrade: HorizonMirage to HorizonADV (100pk)(Named Users)","HZ-MRG-ADVN-100-UG-C","HZ-ADVN-100-P-SSS-C",4070,3087.5]
[null,"NEW",null,"• Upgrade: MiragePhysical to HorizonADV (100pk)(Named Users)","HZ-MGP-ADVN-100-UG-C","HZ-ADVN-100-P-SSS-C",4070,3087.5]
[]
[null,null,null,"HORIZON ADVANCED (CONCURRENT USERS)"]
[null,null,null,"• Upgrade: Horizon Mirage to Horizon ADV (10 pack) (CCU)","HZ-MG5-ADVC-10-UG-C","HZ-ADVC-10-P-SSS-C",1017.5,494]
[null,"NEW",null,"• Upgrade: MiragePhysical to Horizon ADV (10 Pack) (CCU)","HZ-MGP-ADVC-10-UG-C","HZ-ADVC-10-P-SSS-C",1017.5,494]
[null,null,null,"• Upgrade: Horizon View Add-on to Horizon ADV (10 pack) (CCU)","HZ-VAD-ADVC-10-UG-C","HZ-ADVC-10-P-SSS-C",851,494]
[null,null,null,"• Upgrade: Horizon View STD to ADV (10 pack) (CCU)","HZ-VU-ADVC-10-UG-C","HZ-ADVC-10-P-SSS-C",610.5,494]
[null,null,null,"• Upgrade: Horizon Mirage to Horizon ADV (100 pack) (CCU)","HZ-MG5-ADVC-100-UG-C","HZ-ADVC-100-P-SSS-C",10175,4940]
[null,"NEW",null,"• Upgrade: MiragePhysical to Horizon ADV (100 Pack) (CCU)","HZ-MGP-ADVC-100-UG-C","HZ-ADVC-100-P-SSS-C",10175,4940]
[null,null,null,"• Upgrade: Horizon View Add-on to Horizon ADV (100 pack) (CCU)","HZ-VAD-ADVC-100-UG-C","HZ-ADVC-100-P-SSS-C",8510,4940]
[null,null,null,"• Upgrade: Horizon View STD to ADV (100 pack) (CCU)","HZ-VU-ADVC-100-UG-C","HZ-ADVC-100-P-SSS-C",6105,4940]
[]
[null,null,null,"HORIZON ENTERPRISE (NAMED USERS)"]
[null,null,null,"• Upgrade: Horizon ADV to ENT (10 pack) (Named Users)","HZ-ADVN-ENTN-10-UG-C","HZ-ENTN-10-P-SSS-C",203.5,370.5]
[null,null,null,"• Upgrade: Horizon ADV to ENT (100 pack) (Named Users)","HZ-ADV-ENTN-100-UG-C","HZ-ENTN-100-P-SSS-C",2035,3705]
[]
[null,null,null,"HORIZON ENTERPRISE (CONCURRENT USERS)"]
[null,"NEW",null,"• Upgrade: App Volumes to Horizon ENT (10 Pack) (CCU)","HZ-APV-ENTC-10-UG-C","HZ-ENTC-10-P-SSS-C",1424.5,617.5]
[null,null,null,"• Upgrade: Horizon View Add-on to Horizon ENT (10 pack) (CCU)","HZ-VAD-ENTC-10-UG-C","HZ-ENTC-10-P-SSS-C",1258,617.5]
[null,null,null,"• Upgrade: Horizon View STD to ENT (10 pack) (CCU)","HZ-VU-ENTC-10-UG-C","HZ-ENTC-10-P-SSS-C",1017.5,617.5]
[null,null,null,"• Upgrade: Horizon ADV to ENT (10 pack) (CCU)","HZ-ADVC-ENTC-10-UG-C","HZ-ENTC-10-P-SSS-C",407,617.5]
[null,"NEW",null,"• Upgrade: App Volumes to Horizon ENT (100 Pack) (CCU)","HZ-APV-ENTC-100-UG-C","HZ-ENTC-100-P-SSS-C",14245,6175]
[null,null,null,"• Upgrade: Horizon View Add-on to Horizon ENT (100 pack) (CCU)","HZ-VAD-ENTC-100-UG-C","HZ-ENTC-100-P-SSS-C",12580,6175]
[null,null,null,"• Upgrade: Horizon View STD to ENT (100 pack) (CCU)","HZ-VU-ENTC-100-UG-C","HZ-ENTC-100-P-SSS-C",10175,6175]
[null,null,null,"• Upgrade: Horizon ADV to ENT (100 pack) (CCU)","HZ-ADV-ENTC-100-UG-C","HZ-ENTC-100-P-SSS-C",4070,6175]
[]
[null,null,null,"HORIZON FLEX"]
[null,"NEW",null,"• Upgrade: Fusion 5 or 6 Pro to Horizon FLEX per Device","HZ-FUS56-FLX-UG-C","HZ-FLX-1-P-SSS-C",66.599999999999994,308.75]
[null,"NEW",null,"• Upgrade: Fusion Pro/Player Pro to Horizon FLEX per Device","HZ-FUSPL7-FLX-UG-C","HZ-FLX-1-P-SSS-C",37,308.75]
[]
[null,null,null,"•••••••••••• ITBM •••••••••••• "]
[]
[null,null,null,"•••••••••••• NSX / NICIRA •••••••••••• "]
[]
[null,null,null,"NSX for MULTI-HYPERVISOR"]
[null,"NEW",null,"• Upgrade: NSX vSphere-vCloudSteAdd-on to NSX Multi-Hypervisor\n ***Upgrade: NSX for vSphere - vCloud Suite Add-on to VMware NSX for Multi-Hypervisor","NX-CLAD-MHV-UG-C","NX-MHV-P-SSS-C",1424.5,863.85]
[null,"NEW",null,"• Upgrade: NSX for vSphere to NSX for Multi-Hypervisor","NX-VS-MHV-UG-C","NX-MHV-P-SSS-C",407,863.85]
[]
[null,null,null,"••••••••••••  PIVOTAL ••••••••••••• "]
[]
[null,null,null,"•••••••••••• PLAYER ••••••••••••• "]
[]
[null,null,null,"PLAYER PRO"]
[null,"NEW",null,"• Upgrade: Player 6 Plus to Player 7 Pro","PLAY7-PRO-PLAY6-UG-C","PLAY7-PRO-P-SSS-C",29.6,18.200000000000003]
[]
[null,null,null,"••••••••••••  User Environment Manager •••••••••••• "]
[]
[null,null,null,"USER ENVIRONMENT MANAGER"]
[null,"NEW",null,"• Upgrade: User Environment Mgr to Horizon ENT ED: 10 Pack (CCU) \n*** User Environment Manager to Horizon Enterprise Edition: 10 Pack (CCU)","HZ-UEM-ENTC-10-UG-C","HZ-ENTC-10-P-SSS-C",1942.5,617.5]
[null,"NEW",null,"• Upgrade:  User Environment Mgr to Horizon ENT ED: 10 Pack (Named Users) \n*** User Environment Manager to Horizon Enterprise Edition: 10 Pack (Named Users)","HZ-UEM-ENTN-10-UG-C","HZ-ENTN-10-P-SSS-C",1184,370.5]
[null,"NEW",null,"• Upgrade: User Environment Mgr to Horizon ENT ED: 100 Pack (CCU) \n*** User Environment Manager to Horizon Enterprise Edition: 100 Pack (CCU)","HZ-UEM-ENTC-100-UG-C","HZ-ENTC-100-P-SSS-C",19425,6175]
[null,"NEW","U","• Upgrade: User Environment Mger to Horizon ENT ED: 100 Pack (Named Users) \n*** User Environment Manager to Horizon Enterprise Edition: 100 Pack (Named Users)","HZ-UEM-ENTN-100-UG-C","HZ-ENTN-10-P-SSS-C",11840,3705]
[]
[null,null,null,"•••••••••••• vCENTER •••••••••••• "]
[]
[null,null,null,"vCENTER "]
[null,null,null,"• Upgrade: vCenter Server Foundation to Standard","VCS6-FND-STD-UG-C","VCS6-STD-P-SSS-C",1424.5,811.85]
[null,null,null,"• Upgrade: vCenter Site Recovery Manager - STD to ENT (25 VM Pack)","VC-SRM6-25E-UG-C","VC-SRM6-25E-P-SSS-C",3052.5,1528.15]
[]
[null,null,null,"•••••••••••• vCLOUD •••••••••••• "]
[]
[null,null,null,"• Upgrade: vCloud Suite STD to vCloud Suite ENT","CL6-CSTD-CENT-UG-C","CL6-ENT-P-SSS-C",2645.5,1419.6000000000001]
[null,null,null,"• Upgrade: vCloud Suite ADV to vCloud Suite ENT","CL6-CADV-CENT-UG-C","CL6-ENT-P-SSS-C",1628,1419.6000000000001]
[null,null,null,"• Upgrade: vCloud Suite STD to vCloud Suite ADV","CL6-CSTD-CADV-UG-C","CL6-ADV-P-SSS-C",1017.5,925.6]
[null,null,null,"• Upgrade: vSphere STD to vCloud Suite STD","CL6-VSTD-CSTD-UG-C","CL6-STD-P-SSS-C",1628,616.85]
[null,null,null,"• Upgrade: vSphere ENT to vCloud Suite STD","CL6-VENT-CSTD-UG-C","CL6-STD-P-SSS-C",862.84,616.85]
[null,null,null,"• Upgrade: vSphere ENT PLUS to vCloud Suite STD","CL6-VEPL-CSTD-UG-C","CL6-STD-P-SSS-C",610.5,616.85]
[null,null,null,"• Upgrade: vSphere w/ Ops Mgt STD to vCloud Suite STD","CL6-OSTD-CSTD-UG-C","CL6-STD-P-SSS-C",1322.75,616.85]
[null,null,null,"• Upgrade: vSphere w/ Ops Mgt ENT to vCloud Suite STD","CL6-OENT-CSTD-UG-C","CL6-STD-P-SSS-C",556.85,616.85]
[null,null,null,"• Upgrade: vSphere w/ Ops Mgt ENT PLUS to vCloud Suite STD","CL6-OEPL-CSTD-UG-C","CL6-STD-P-SSS-C",305.25,616.85]
[null,null,null,"• Upgrade: vSphere STD to vCloud Suite ADV","CL6-VSTD-CADV-UG-C","CL6-ADV-P-SSS-C",2589.2599999999998,925.6]
[null,null,null,"• Upgrade: vSphere ENT to vCloud Suite ADV","CL6-VENT-CADV-UG-C","CL6-ADV-P-SSS-C",1880.34,925.6]
[null,null,null,"• Upgrade: vSphere ENT Plus to vCloud Suite ADV","CL6-VEPL-CADV-UG-C","CL6-ADV-P-SSS-C",1628,925.6]
[null,null,null,"• Upgrade: vSphere w/ Ops Mgt STD to vCloud Suite ADV","CL6-OSTD-CADV-UG-C","CL6-ADV-P-SSS-C",2340.25,925.6]
[null,null,null,"• Upgrade:  vSphere w/ Ops Mgt ENT to vCloud Suite ADV","CL6-OENT-CADV-UG-C","CL6-ADV-P-SSS-C",1576.2,925.6]
[null,null,null,"• Upgrade: vSphere w/ Ops Mgt STD to vCloud Suite ENT","CL6-OSTD-CENT-UG-C","CL6-ENT-P-SSS-C",3968.25,1419.6000000000001]
[null,null,null,"• Upgrade: vSphere w/ Ops Mgt ENT to vCloud Suite ENT","CL6-OENT-CENT-UG-C","CL6-ENT-P-SSS-C",3204.2,1419.6000000000001]
[null,null,null,"• Upgrade: vSphere w/ Ops Mgt ENT PLUS to vCloud Suite ENT","CL6-OEPL-CENT-UG-C","CL6-ENT-P-SSS-C",2950.75,1419.6000000000001]
[null,null,null,"• Upgrade: vSphere w/ Ops Mgt ENT Plus to vCloud Suite ADV","CL6-OEPL-CADV-UG-C","CL6-ADV-P-SSS-C",1322.75,925.6]
[null,null,null,"• Upgrade: vSphere STD to vCloud Suite ENT","CL6-VSTD-CENT-UG-C","CL6-VSTD-CENT-UG-C",4069.2599999999998,1419.6000000000001]
[null,null,null,"• Upgrade: vSphere ENT to vCloud Suite ENT","CL6-VENT-CENT-UG-C","CL6-ENT-P-SSS-C",3508.34,1419.6000000000001]
[null,null,null,"• Upgrade: vSphere ENT PLUS to vCloud Suite ENT","CL6-VEPL-CENT-UG-C","CL6-VEPL-CENT-UG-C",3256,1419.6000000000001]
[]
[null,null,null,"•••••••••••• vREALIZE •••••••••••• "]
[]
[null,null,null,"vREALIZE BUSINESS"]
[null,"NEW",null,"• Upgrade: vRealize Business STD to ADV  (Per CPU) \n ***Upgrade: vRealize Business Standard (Per CPU) tovRealize Business Advanced \n      (Per CPU)","VR6-BSTD-BADV-UG-C","VR6-BADV-P-SSS-C",305.25,278.2]
[null,"NEW",null,"• Upgrade: vRealize Business STD to ENT (Per CPU)  \n***Upgrade:  vRealize Business Standard (Per CPU) to vRealize Business 8 Enterprise \n     (Per CPU)","VR6-BSTD-BENT-UG-C","VR6-BENT-P-SSS-C",764.05,416.65000000000003]
[null,"NEW",null,"• Upgrade: vRealize Business ADV to ENT (Per CPU)  \n***Upgrade: vRealize Business Advanced (Per CPU) to vRealize Business Enterprise\n      (Per CPU)","VR6-BADV-BENT-UG-C","VR6-BENT-P-SSS-C",458.8,416.65000000000003]
[]
[null,null,null,"vREALIZE CLOUD MGMT PLATFORM ENTERPRISE"]
[null,null,null,"• Upgrade: ITBusMgtSuite STD to vRealizeCloudMgtENT (25 OSI)  \n  ***Upgrade: IT Business Management Suite 1 Standard to vRealize Suite 6 Enterprise \n       (25 OSI Pack)","VR-STD-CMPENT-UG-C","VR-CMP-ENT-P-SSS-C",9107.5499999999993,3071.9]
[null,null,null,"• Upgrade: vC.OpsMgtSuiteSTD to vRealizeCloudMgtENT (25 OSI) \n   ***Upgrade: vCenter Operations 5.6 Management Suite Standard to vRealize Suite 6 \n        Enterprise (25 OSI Pack)","VR-OSTD-CMPENT-UG-C","VR-CMP-ENT-P-SSS-C",8852.25,3071.9]
[null,null,null,"• Upgrade: vC.OpsMgtSuiteADV to vRealizeCloudMgtENT (25 OSI) \n  ***Upgrade: vCenter Operations 5.6 Management Suite Advanced to vRealize Suite 6 \n       Enterprise (25 OSI Pack)","VR-OADV-CMPENT-UG-C","VR-CMP-ENT-P-SSS-C",7326,3071.9]
[null,null,null,"• Upgrade: vC.OpsMgtSuiteENT to vRealizeCloudMgtENT (25 OSI) \n***Upgrade: vCenter Operations 5.6 Management Suite Enterprise to vRealize Suite 6 \n     Enterprise (25 OSI Pack)","VR-OENT-CMPENT-UG-C","VR-CMP-ENT-P-SSS-C",3052.5,3071.9]
[null,null,null,"• Upgrade: vC.LogInsight perOSI to vRealizeCloudMgtENT (25 OSI) \n ***Upgrade: VMware vCenter Log Insight per OSI to vRealize Suite 6 EnterpriseE\n      25 OSI Pack)","VR-LIS-CMPENT-UG-C","VR-CMP-ENT-P-SSS-C",8090.05,3071.9]
[null,null,null,"• Upgrade: vCloudAutoCtrADVSuite to vRealizeCloudMgtENT (25 OSI) \n   ***Upgrade: vCloud Automation Center 6 Advanced Suite to vRealize Suite 6 Enterprise \n        (25 OSI Pack)","VR-CADV-CMPENT-UG-C","VR-CMP-ENT-P-SSS-C",6055.05,3071.9]
[null,null,null,"• Upgrade: vCloudAutoCtrENTSuite to vRealizeCloudMgtENT (25 OSI) \n***Upgrade: vCloud Automation Center Enterprise Suite to vRealize Suite 6 Enterprise\n     (25 OSI Pack)","VR-CENT-CMPENT-UG-C","VR-CMP-ENT-P-SSS-C",2238.5,3071.9]
[]
[null,null,null,"vREALIZE OPERATIONS"]
[null,null,null,"• Upgrade: vRealize Ops STD (25 VM-PK) to vRealize Ops ADV (25 OSI-PK)  \n***Upgrade: vRealize Operations Standard (25 VM Pack) to vRealize Operations      \n     Advanced (25 OSI Pack)","VR6-OSTD-OADV-UG-C","VR6-OADV25-P-SSS-C",1526.25,772.2]
[null,null,null,"• Upgrade: vRealize Ops STD (25 VM-PK) to vRealize Ops ENT (25 OSI-PK)\n***Upgrade: Realize Ops  STD (25 VM Pack) to vRealize Ops Enterprise (25 OSI Pack)","VR6-OSTD-OENT-UG-C","VR6-OENT25-P-SSS-C",4834.05,1852.5]
[null,null,null,"• Upgrade: vRealize Ops ADV (25 OSI Pack) to vRealize Ops ENT (25 OSI-PK) ***Upgrade:  vRealize Operations Advanced (25 OSI Pack) to vRealize Operations Enterprise (25 OSI Pack)","VR6-OADV-OENT-UG-C","VR6-OENT25-P-SSS-C",4273.5,1852.5]
[]
[null,null,null,"vREALIZE OPERATIONS INSIGHT"]
[null,"NEW",null,"• Upgrade: vCenter Log Insight (CPU) to vRealize Ops Insight  ***Upgrade: vCenter Log Insight per CPU to vRealize Operations Insight ","VR-LIS-OIST-UG-C","VR-OIST-BUN-P-SSS-C",203.5,247]
[null,null,null,"• Upgrade: vCOM ADV Add-on (vSOM) to vRealize Ops Insight  ***Upgrade:  vCenter Operations 5.8.2 Mgmt Suite Advanced Add-On for vSOM to vRealize Operations Insight 6","VR-ADA-OIST-UG-C","VR-OIST-BUN-P-SSS-C",203.5,247]
[]
[null,null,null,"vREALIZE PUBLIC CLOUD EXTENSION"]
[null,null,null,"• Upgrade: vRealize Auto Public Cloud Ext (25 OSI pack) ADV to ENT","VR-AT-ADV-ENT-UG-C","VR-AT-ENT25-P-SSS-C",1985.05,1219.4000000000001]
[null,"NEW",null,"• Upgrade: vRealize Automation (25 OSI Pack) ADV to ENT\n***Upgrade: VMware VMware vRealize Automation Advanced (25 OSI Pack) to VMware vRealize Automation Enterprise (25 OSI Pack)","CA6-ADV25-ENT25-UG-C","CA6-ENT25-P-SSS-C",3816.5499999999997,1219.4000000000001]
[null,"NEW",null,"• Upgrade: vRealize Ops Public Cloud Extension ADV to ENT\n***Upgrade:  Realize Operations Public Cloud Extension Advanced (25 OSI Pack) to vRealize Operations Public Cloud Extension Enterprise (25 OSI Pack)","VR6-PCADV-ENT-UG-C","VR6-PCENT25-P-SSS-C",1985.05,1219.4000000000001]
[]
[null,null,null,"vREALIZE SUITE"]
[null,"NEW",null,"• Upgrade: IT Bus Mgt STE STD to vRealize STE ADV (25 OSI Pack) \n***Upgrade: IT Business Management Suite 1 Standard to vRealize Suite Advanced \n     (25 OSI Pack)","VR-STD-STEADV-UG-C","VR-STE-ADV-P-SSS-C",5851.55,2083.9]
[null,"NEW",null,"• Upgrade: vCenter Log Insight to vRealize STE ADV (25 OSI Pack)\n***Upgrade: vCenter Log Insight per OSI to vRealize Suite Advanced (25 OSI Pack)","VR-LIS-STEADV-UG-C","VR-STE-ADV-P-SSS-C",4834.05,2083.9]
[null,"NEW",null,"• Upgrade: vCenter Ops Mgt STE ADV to vRealize STE ADV (25 OSI Pack)\n***Upgrade:  vCenter Operations Mgt Suite Advanced to vRealize Suite Advanced\n     (25 OSI Pack)","VR-OADV-STEADV-UG-C","VR-STE-ADV-P-SSS-C",4070,2083.9]
[null,"NEW",null,"• Upgrade: vCenter Ops Mgt STE STD to vRealize STE ADV (25 OSI Pack) \n***Upgrade:  vCenter Operations Mgt Suite Standard to vRealize Suite Advanced \n     (25 OSI Pack)","VR-OSTD-STEADV-UG-C","VR-STE-ADV-P-SSS-C",5596.25,2083.9]
[null,"NEW",null,"• Upgrade: vCloud Auto Ctr ADV STE to vRealize STE ADV (25 OSI Pack) \n***Upgrade: vCloud Automation Center Advanced Suite to vRealize Suite Advanced \n    (25 OSI Pack)","VR-CADV-STEADV-UG-C","VR-STE-ADV-P-SSS-C",2799.05,2083.9]
[null,"NEW",null,"• Upgrade: vRealize BUS STD (25 OSI) to vRealize STE ADV (25 OSI Pack)\n ***Upgrade: vRealize Business Standard (25 OSI Pack) to vRealize Suite Advanced \n      (25 OSI Pack)","VR-BOSTD-STEADV-UG-C","VR-STE-ADV-P-SSS-C",4834.05,2083.9]
[null,"NEW",null,"• Upgrade: vROPS ADV to vRealize Suite ADV (25 OSI Pack) \n***Upgrade: vRealize Operations Advanced (25 OSI Pack) to vRealize Suite Advanced \n     (25 OSI PK)","VR-RADV-STEADV-UG-C","VR-STE-ADV-P-SSS-C",4070,2083.9]
[null,"NEW",null,"• Upgrade: vROPS STE STD to vRealize STE ADV (25 OSI Pack)","VR-RSTD-STEADV-UG-C","VR-STE-ADV-P-SSS-C",5596.25,2083.9]
[null,"NEW",null,"• Upgrade: vRealize STE ADV to vRealize STE ENT (25 OSI Pack) ","VR-RADV-CMPENT-UG","VR-CMP-ENT-P-SSS-C",3256,3071.9]
[]
[null,null,null,"••••••••••••vSAN / STORAGE •••••••••••• "]
[]
[null,null,null,"VIRTUAL SAN BUNDLE"]
[null,"NEW",null,"• Upgrade: vSphere Storage Appliance to Virtual SAN Bundle","ST6-VSA-VSAN-UG-C","ST6-VSAN-BN-P-SSS-C",4245.75,1417]
[]
[null,null,null,"•••••••••••• vSPHERE •••••••••••• "]
[]
[null,null,null,"vSPHERE ENTERPRISE"]
[null,null,null,"• Upgrade: vSphere STD to ENT for 1 Processor","VS6-STD-ENT-UG-C","VS6-ENT-P-SSS-C",765.16,467.35]
[]
[null,null,null,"vSPHERE ENTERPRISE PLUS"]
[null,null,null,"• Upgrade: vSphere STD to ENT PLUS for 1 processor","VS6-STD-EPL-UG-C","VS6-EPL-P-SSS-C",1017.5,568.1]
[null,null,null,"• Upgrade: vSphere ENT to ENT PLUS for 1 processor","VS6-ENT-EPL-UG-C","VS6-EPL-P-SSS-C",276.91000000000003,568.1]
[]
[null,null,null,"vSPHERE w/ OPS MGMT STANDARD"]
[null,null,null,"• Upgrade: vSphere STD to vSphere w/ Ops Mgt STD for 1 Processor","VS6-STD-OSTD-UG-C","VS6-OSTD-P-SSS-C",305.25,215.8]
[]
[null,null,null,"vSPHERE w/ OPS MGMT ENTERPRISE"]
[null,null,null,"• Upgrade: vSphere STD to vSphere w/ Ops Mgt ENT for 1 Processor","VS6-STD-OENT-UG-C","VS6-OENT-P-SSS-C",1071.1500000000001,447.85]
[null,null,null,"• Upgrade: vSphere ENT to vSphere w/ Ops Mgt ENT for 1 Processor","VS6-ENT-OENT-UG-C","VS6-OENT-P-SSS-C",305.25,447.85]
[null,null,null,"• Upgrade: vSphere w/ Ops Mgt STD to ENT for 1 Processor","VS6-OSTD-OENT-UG-C","VS6-OENT-P-SSS-C",765.9,447.85]
[]
[null,null,null,"vSPHERE w/ OPS MGMT ENTERPRISE PLUS"]
[null,null,null,"• Upgrade: vSphere STD to vSphere w/ Ops Mgt ENT PLUS for 1 Processor","VS6-STD-OEPL-UG-C","VS6-OEPL-P-SSS-C",1322.75,524.55000000000007]
[null,null,null,"• Upgrade: vSphere ENT to vSphere w/ Ops Mgt ENT PLUS for 1 Processor","VS6-ENT-OEPL-UG-C","VS6-OEPL-P-SSS-C",558.70000000000005,524.55000000000007]
[null,null,null,"• Upgrade: vSphere ENT PL to vSphere w/ Ops Mgt ENT PLUS for 1 Processor","VS6-EPL-OEPL-UG-C","VS6-OEPL-P-SSS-C",305.25,524.55000000000007]
[null,null,null,"• Upgrade: vSphere w/ Ops Mgt STD to ENT PLUS for 1 Processor","VS6-OSTD-OEPL-UG-C","VS6-OEPL-P-SSS-C",1017.5,524.55000000000007]
[null,null,null,"• Upgrade: vSphere w/ Ops Mgt ENT to ENT PLUS for 1 Processor","VS6-OENT-OEPL-UG-C","VS6-OEPL-P-SSS-C",253.45,524.55000000000007]
[]
[null,null,null,"vSPHERE w/ OPS MGMT STANDARD ACCELERATION KIT"]
[null,null,null,"• Upgrade: vSphereEssent to vSphere w/OpsMgmt STD Accel Kit","VS5-ES-MSTD-AK-UG-C","VS5-MSTD-AK-P-SSS-C",3605.65,1234.3499999999999]
[null,null,null,"• Upgrade: vSphereEssentPlus to vSphere w/OpsMgmt STD Accel Kit","VS5-ESP-MSTD-AK-UG-C","VS5-MSTD-AK-P-SSS-C",2238.5,1234.3499999999999]
[]
[null,null,null,"vSPHERE w/ OPS MGMT ENTERPRISE ACCELERATION KIT"]
[null,null,null,"• Upgrade: vSphereEssent to vSphere w/OpsMgt ENT Accel Kit for 6 Processors","VS6-ES-OENT-AK-UG-C","VS6-OENT-AK-P-SSS-C",7120.65,2407.6]
[null,null,null,"• Upgrade:vSphereEssentPlus to vSphere w/OpsMgt ENTAccel Kit for 6 Processors","VS6-ESP-OENT-AK-UG-C","VS6-OENT-AK-P-SSS-C",6105,2407.6]
[]
[null,null,null,"vSPHERE w/ OPS MGMT ENTERPRISE PLUS ACCELERATION KIT"]
[null,null,null,"• Upgrade: vSphereEssent to vSphere w/OpsMgt ENTPL Accel Kit","VS5-ES-VEPL-AK-UG-C","VS5-VEPLAK-2M-PSSS-C",8600.65,2901.6]
[null,null,null,"• Upgrade: vSphereEssentPl to vSphere w/OpsMgtENTPL Accel Kit","VS5-ESP-VEPL-AK-UG-C","VS5-VEPLAK-2M-PSSS-C",7733,2901.6]
[]
[null,null,null,"vSPHERE ESSENTIALS PLUS"]
[null,null,null,"• Upgrade: vSphere Essentials to Essentials Plus Kit - for 3 hosts\n   (Max 2 processors per host)","VS6-ES-ESPL-UG-C","VS6-ESP-KIT-P-SSS-C",1628,555.09999999999991,null,"NOTE:  Max 3 hosts, 2 processors per host."]
[]
[null,null,null,"vSPHERE ESSENTIALS PLUS for RETAIL & BRANCH OFFICES"]
[null,null,null,"• Upgrade: vSphere Essentials to Essentials Plus Kit - for 3 hosts \n  (Max 2 processors per host)","VS6-ES-ESPL-UG-C","VS6-ESP-KIT-P-SSS-C",1628,555.09999999999991]
[]
[null,null,null,"vSPHERE REMOTE/BRANCH OFFICE"]
[null,null,null,"• Upgrade: vSphereRemoteBranchOffice STD to ADV (25 VM Pack)","VS6-RBSTD-ADV25-UG-C","VS6-RBADV-2M-PSSS-C",610.5,555.75]
[]
[null,null,null,"•••••••••••• WORKSTATION •••••••••••• "]
[]
[null,null,null,"WORKSTATION"]
[null,"NEW",null,"• Upgrade: Workstation Pro 12 Upgrade from Vers: 10.x/11.x/or Player 6 Pl Lin/Win, ESD \n ***Upgrade:  Workstation Pro 12 upgrade from vers:  10.X\\11.x/or Player 6 Plus for Linux \n      and Windows, ESD","WS12-LW-UG-CE","WS-P-SSS-C",44.03,30.55]
[null,"NEW",null,"• Upgrade: Workstation Pro 12 Upgrade from Player Pro 7 for Linux/Windows, ESD  ***Upgrade:  Workstation Pro 12 Upgrade from Player 7 Pro for Linux and Windows, ESD","WS12-LWP7-UG-CE","WS-P-SSS-C",37,30.55]
[]
[]
[]
[]
[null,null,null,"Maintenance Renewal Pricing  (existing OARnet licenses ONLY)"]
[null,null,null,"Product","SnS Code","1 yr SnS Fee"]
[]
[null,null,null,"AIRWATCH"]
[null,null,null,"• AirWatch by VMware Secure Content Locker Collaborate","V-MCC-MF-ANY-DEV-C",6.5]
[null,null,null,"• AirWatch by VMware Mgt Suite for Laptops","V-MS-MF-DEV-LT-C",6.5]
[null,null,null,"• AirWatch by VMware Mgt Suite for Rugged Devices","V-MS-MF-DEV-RG-C",6.5]
[null,null,null,"• AirWatch by VMware Green Mgt Suite","V-GMS-MF-DEV-C",6.5]
[null,null,null,"• AirWatch by VMware Orange Mgt Suite","V-OMS-MF-DEV-C",8.4499999999999993]
[null,null,null,"• AirWatch by VMware Blue Mgt Suite Perpetual, One Time Fee / Device"," BMS15-PL-DEV",11.05]
[null,null,null,"• AirWatch by VMware Yellow Mgt Suite - Perpetual, One Time Fee / Device","YMS15-PL-DEV",16.25]
[]
[null,null,null,"APP VOLUME"]
[null,null,null,"• App Volumes 10 Pack (CCU)","CV-CCU-10-P-SSS-C",185.25]
[null,null,null,"• App Volumes 100 Pack (CCU)","CV-CCU-100-P-SSS-C",1852.5]
[]
[null,null,null,"CONTINUENT"]
[null,"NEW",null,"• Continuent for Analytics & Big Data - Per Cluster License","CN-ABD-P-SSS-C",11115]
[null,"NEW",null,"• Continuent for Clustering - Per Database Server License","CN-CP-P-SSS-C",3705]
[null,"NEW",null,"• Continuent for Disaster Recovery - Per Database Server License","CN-DR-P-SSS-C",1852.5]
[null,"NEW",null,"• Continuent for Replication - Per Database Server License","CN-RP-P-SSS-C",3705]
[]
[null,null,null,"FUSION"]
[null,null,null,"• Fusion Professional Edition, ESD  (SnS is optional)","FUS-PRO-P-SSS-C",16.25]
[]
[null,null,null,"HORIZON"]
[null,null,null,"• Horizon View Advanced Edition (10 pack) (CCU)","HZ-ADVC-10-P-SSS-C",494]
[null,null,null,"• Horizon View Advanced Edition (100 pack) (CCU)","HZ-ADVC-100-P-SSS-C",4940]
[null,null,null,"• Horizon View Advanced Edition (10 pack) (Named Users)","HZ-ADVN-10-P-SSS-C",308.75]
[null,null,null,"• Horizon View Advanced Edition (100 pack) (Named Users)","HZ-ADVN-100-P-SSS-C",3087.5]
[null,null,null,"• Horizon View Application Mgt Bundle: 10 Pack (CCU)","HZ-APMC-10-P-SSS-C",222.3]
[null,null,null,"• Horizon View Application Mgt Bundle: 100 Pack (CCU)","HZ-APMC-100-P-SSS-C",2223]
[null,null,null,"• Horizon DaaS On Premise Platform: 100-pack","HZ-DS-100-P-SSS-C",3396.25]
[null,null,null,"• Horizon FLEX 10 pack (Per Device)","HZ-FLX-10-P-SSS-C",308.75]
[null,null,null,"• Horizon View Enterprise Edition (10 pack) (CCU)","HZ-ENTC-10-P-SSS-C",617.5]
[null,null,null,"• Horizon View Enterprise Edition (100 pack) (CCU)","HZ-ENTC-100-P-SSS-C",6175]
[null,null,null,"• Horizon View Enterprise Edition (10 pack) (Named Users)","HZ-ENTN-10-P-SSS-C",370.5]
[null,null,null,"• Horizon View Enterprise Edition (100 pack) (Named Users)","HZ-ENTN-100-P-SSS-C",3705]
[null,null,null,"• Horizon View Standard Add-On: 10 pack (CCU)","HZ-STD-A10-P-SSS-C",234.65]
[null,null,null,"• Horizon View Standard Add-On: 100 pack (CCU)","HZ-STD-A100-P-SSS-C",2346.5]
[null,null,null,"• Horizon View Standard Edition (10 pack) (CCU)","HZ-STD-10-P-SSS-C",308.75]
[null,null,null,"• Horizon View Standard Edition (100 pack) (CCU)","HZ-STD-100-P-SSS-C",3087.5]
[null,null,null,"• Horizon Workspace Portal: 10 pack","WSP-10-P-SSS-C",61.75]
[null,null,null,"• Horizon Workspace Portal: 100 pack","WSP-100-P-SSS-C",617.5]
[]
[null,null,null,"IT BUSINESS/FINANCIAL MANAGEMENT"]
[null,null,null,"• IT Business Management Foundation package","DF-ITBM-FND-P-SSS-C",55575]
[null,null,null,"• IT Business Management Additional User","DF-ITBM-P-SSS-C",9262.5]
[null,null,null,"• IT Business Management Read-Only","DF-ITBM5-P-SSS-C",2778.75]
[null,null,null,"• IT Financial Management Foundation package","DF-ITFM-FND-P-SSS-C",37050]
[null,null,null,"• IT Financial Management Additional User","DF-ITFM-ADD-P-SSS-C",7410]
[null,null,null,"• IT Financial Management Read-Only","DF-ITFM5-P-SSS-C",2778.75]
[null,"NEW",null,"• vRealize Business Advanced Additional User - perpetual license for 5 users","BM-ADV-AD-PSUP-C",7410]
[null,"NEW",null,"• vRealize Business Advanced Foundation Package - perpetual license for 5 users","BM-ADV-FND-PSUP-C",37050]
[null,"NEW",null,"• vRealize Business Advanced Read-Only Perpetual License for 5 users","BM-ADV-RO-PSUP-C",12.35]
[null,"NEW",null,"• vRealize Business Enterprise Additional User - perpetual license for 5 users","BM-ENT-AD-PSUP-C",9262.5]
[null,"NEW",null,"• vRealize Business Enterprise Foundation Package - perpetual license for 10 users","BM-ENT-FND-PSUP-C",20377.5]
[null,"NEW",null,"• vRealize Business Enterprise Read-Only Perpetual License for 5 users","BM-ENT-RO-PSUP-C",12.35]
[]
[null,null,null,"MIRAGE"]
[null,null,null,"• Mirage for Physical: 10 Pack","MGP-10-P-SSS-C",185.25]
[null,null,null,"• Mirage for Physical: 100 Pack","MGP-100-P-SSS-C",1852.5]
[]
[null,null,null,"NSX"]
[null,null,null,"• NSX for Multi-Hypervisor per Processor","NX-MHV-3P-SSS-C",863.85]
[null,null,null,"• NSX vSphere  ","NX-VS-P-SSS-C",740.35]
[null,null,null,"• NSX vSphere - vCloud Suite Add-on","NX-CLAD-P-SSS-C",431.6]
[]
[null,null,null,"PIVOTAL"]
[null,"NEW",null,"• Pivotal App Suite v2 Perpetual License (1 core)","PV-APP-STE-P-SSS-C",111.15]
[null,"NEW",null,"• Pivotal GemFire XD (Per Core)","PV-GFXD-CPU-P-SSS-C",308.75]
[]
[null,null,null,"PLAYER"]
[null,null,null,"• Player Pro","PLAY7-PRO-P-SSS-C",18.200000000000003]
[]
[null,null,null,"THINAPP"]
[null,null,null,"• ThinApp Suite","THIN5-STE-P-SSS-C",617.5]
[null,null,null,"• ThinApp Client (100 pack)","THIN5-100PK-P-SSS-C",234.65]
[]
[null,null,null,"USER ENVIRONMENT MANAGER"]
[null,"NEW",null,"• User Environment Manager: 10 Pack (CCU)","UEM-CCU-10-P-SSS-C",61.75]
[null,"NEW",null,"• User Environment Manager: 10 Pack (Named Users)","UEM-NU-10-P-SSS-C",37.049999999999997]
[null,"NEW",null,"• User Environment Manager: 100 Pack (CCU)","UEM-CCU-100-P-SSS-C",617.5]
[null,"NEW",null,"• User Environment Manager: 100 Pack (Named Users)","UEM-NU-100-P-SSS-C",370.5]
[]
[null,null,null,"vCENTER "]
[null,null,null,"• vCenter Configuration Manager Workstation - Linux/Windows","VC-CMW-P-SSS-C",5.2]
[null,null,null,"• vCenter Operations Mgt pack for EPIC","VC-EPIC-P-SSS-C",7410]
[null,null,null,"• vCenter Server Foundation for vSphere up to 3 hosts (Per Instance)","VCS6-FND-P-SSS-C",184.6]
[null,null,null,"• vCenter Server Standard for vSphere 6 (Per Instance)","VCS6-STD-P-SSS-C",811.85]
[null,null,null,"• vCenter Site Recovery Manager Standard (25 VM pack)","VC-SRM6-25S-P-SSS-C",601.9]
[null,null,null,"• vCenter Site Recovery Manager Enterprise (25 VM pack)","VC-SRM6-25E-P-SSS-C",1528.15]
[]
[null,null,null,"vCENTER / vREALIZE LOG INSIGHT"]
[null,null,null,"• vRealize Log Insight (per CPU)","VC-LIS-CPU-P-SSS-C",185.25]
[null,null,null,"• vRealize Log Insight (25 OSI pack)","VC-LIS-25-P-SSS-C",617.5]
[]
[null,null,null,"vCENTER OPERATIONS MANAGEMENT"]
[null,null,null,"• vCenter Operations Mgmt Suite STD (25 VM pack)","VC56-STD25-P-SSS-C",386.1]
[null,null,null,"• vCenter Operations Mgmt Suite ADV (25 OperatingSysInstance pack)","VC56-ADV25-P-SSS-C",772.2]
[null,null,null,"• vCenter Operations Mgmt Suite ENT (25 OperatingSysInstance pack)","VC56-ENT25-P-SSS-C",1852.5]
[null,null,null,"• vCenter Operations Management pack for EPIC","VC-EPIC-P-SSS-C",7410]
[]
[null,null,null,"vCLOUD"]
[null,null,null,"• vCloud Automation Center Development Kit - per Instance","CA6-DEVK-P-SSS-C",2470]
[null,null,null,"• vCloud Suite Standard","CL6-STD-P-SSS-C",616.85]
[null,null,null,"• vCloud Suite Advanced","CL6-ADV-P-SSS-C",925.6]
[null,null,null,"• vCloud Suite Enterprise","CL6-ENT-P-SSS-C",1419.6000000000001]
[]
[null,null,null,"vFABRIC"]
[null,null,null,"• vFabric Data Director 2.x License (25 VM pack)","VF-DD2-25VM-P-SSS-C",2315.9500000000003]
[]
[null,null,null,"vREALIZE"]
[null,null,null,"• vRealize Automation Advanced (25 OSI Pack)","CA6-ADV25-P-SSS-C",1235]
[null,null,null,"• vRealize Automation Enterprise (25 OSI Pack)","CA6-ENT25-P-SSS-C",2392.65]
[null,null,null,"• vRealize Automation Desktop (25 Pack)","CA6-AUTDT25-P-SSS-C",410.8]
[null,null,null,"• vRealize Automation ADV Public Cloud Extension (25 OSI pack)","VR-AT-ADV25-P-SSS-C",617.5]
[null,null,null,"• vRealize Automation ENT Public Cloud Extension (25 OSI pack)","VR-AT-ENT25-P-SSS-C",1219.4000000000001]
[null,"NEW",null,"• vRealize Business Advanced (Per CPU)","VR6-BADV-P-SSS-C",278.2]
[null,"NEW",null,"• vRealize Business Advanced Additional User - perpetual license for 5 users","BM-ADV-AD-PSUP-C",7410]
[null,"NEW",null,"• vRealize Business Advanced Foundation Package - perpetual license for 5 users","BM-ADV-FND-PSUP-C",37050]
[null,"NEW",null,"• vRealize Business Advanced Read-Only Perpetual License for 5 users","BM-ADV-RO-PSUP-C",12.35]
[null,"NEW",null,"• vRealize Business Enterprise (Per CPU)","VR6-BENT-P-SSS-C",416.65000000000003]
[null,"NEW",null,"• vRealize Business Enterprise Additional User - perpetual license for 5 users","BM-ENT-AD-PSUP-C",9262.5]
[null,"NEW",null,"• vRealize Business Enterprise Foundation Package - perpetual license for 10 users","BM-ENT-FND-PSUP-C",20377.5]
[null,"NEW",null,"• vRealize Business Enterprise Read-Only Perpetual License for 5 users","BM-ENT-RO-PSUP-C",12.35]
[null,"NEW",null,"• vRealize Business Standard (25 OSI Pack)","VR6-BSTD25-P-SSS-C",617.5]
[null,"NEW",null,"• vRealize Business Standard (Per CPU)","VR6-BSTD-P-SSS-C",185.25]
[null,"NEW",null,"• vRealize Code Stream (Per CPU)","VR-CODE-CPU-P-SSS-C",926.25]
[null,"NEW",null,"• vRealize Code Stream (Per OSI)","VR-CODE-OSI-P-SSS-C",154.70000000000002]
[null,"NEW",null,"• vRealize Hyperic Perpetual License (Per Machine)","VF-HYPM5-P-SSS-C",44.2]
[null,null,null,"• vRealize Operations Standard (25 OSI pack)","VR6-OSTD25-P-SSS-C",386.1]
[null,null,null,"• vRealize Operations Advanced (25 OSI Pack)","VR6-OADV25-P-SSS-C",772.2]
[null,null,null,"• vRealize Operations Enterprise (25 OSI Pack)","VR6-OENT25-P-SSS-C",1852.5]
[null,"NEW",null,"• vRealize Operations for Horizon: 10 Concur. User pack","VR6-VU10-P-SSS-C",92.95]
[null,"NEW",null,"• vRealize Operations for Horizon: 100 Concurrent User Pack","VR6-VU100-P-SSS-C",926.25]
[null,null,null,"• vRealize Operations Insight","VR-OIST-BUN-P-SSS-C",247]
[null,"NEW",null,"• vRealize Operations Public Cloud Extension ADV (25 OSI Pack)","VR6-PCADV25-P-SSS-C",617.5]
[null,"NEW",null,"• vRealize Operations Public Cloud Extension ENT (25 OSI Pack)","VR6-PCENT25-P-SSS-C",1219.4000000000001]
[null,"NEW",null,"• vRealize Suite Advanced (25 OSI Pack)","VR-STE-ADV-P-SSS-C",2083.9]
[null,"NEW",null,"• vRealize Suite Advanced (2 CPUs)","VR-2CPU-ADV-P-SSS-C",1420.25]
[null,"NEW",null,"• vRealize Suite Enterprise (25 OSI pack)","VR-CMP-ENT-P-SSS-C",3071.9]
[null,"NEW",null,"• vRealize Suite Enterprise (2 CPUs)","VR-2CPU-ENT-P-SSS-C",2457.65]
[]
[null,null,null,"vREALIZE LOG INSIGHT"]
[null,null,null,"• vRealize Log Insight (per CPU)","VC-LIS-CPU-P-SSS-C",185.25]
[null,null,null,"• vRealize Log Insight (25 OSI pack)","VC-LIS-25-P-SSS-C",617.5]
[]
[null,null,null,"vSAN / STORAGE"]
[null,"NEW",null,"• Virtual SAN All Flash for Desktop Add-On 10 Pack (CCU)","ST6-VF-A10-P-SSS-C",37.049999999999997]
[null,"NEW",null,"• Virtual SAN All Flash for Desktop Add-On 100 Pack (CCU)","ST6-VF-A100-P-SSS-C",370.5]
[null,"NEW",null,"• Virtual SAN All Flash Add-on for 1 processor","ST6-VF-AD-P-SSS-C",184.6]
[null,null,null,"• Virtual SAN for 1-Processor","ST6-VSAN-P-SSS-C",308.10000000000002]
[null,null,null,"• Virtual SAN for Desktop (10 pack) CCU","ST6-VSDT10-P-SSS-C",61.75]
[null,null,null,"• Virtual SAN for Desktop (100 pack) CCU","ST6-VSDT100-P-SSS-C",617.5]
[]
[null,null,null,"vSPHERE"]
[null,null,null,"• vSphere Standard for 1 processor","VS6-STD-P-SSS-C",122.85000000000001]
[null,null,null,"• vSphere Enterprise for 1 processor","VS6-ENT-P-SSS-C",467.35]
[null,null,null,"• vSphere Enterprise Plus for 1 processor","VS6-EPL-P-SSS-C",568.1]
[null,null,null,"• vSphere w/ Operations Management Standard (per CPU)","VS6-OSTD-P-SSS-C",215.8]
[null,null,null,"• vSphere w/ Operations Management Enterprise (per CPU)","VS6-OENT-P-SSS-C",447.85]
[null,null,null,"• vSphere w/ Operations Management Enterprise Plus (per CPU)","VS6-OEPL-P-SSS-C",524.55000000000007]
[]
[null,null,null,"vSPHERE KITS"]
[null,null,null,"• vSphere Essentials Plus Kit (3 hosts)","VS6-ESP-KIT-P-SSS-C",555.09999999999991]
[null,null,null,"• vSphere w/Operations Management Standard ACCEL Kit 6 processors","VS6-OSTD-AK-P-SSS-C",1234.3499999999999]
[null,null,null,"• vSphere w/Operations Management Enterprise ACCEL Kit for 6 processors","VS6-OENT-AK-P-SSS-C",2407.6]
[null,null,null,"• vSphere w/Operations Management Enterprise Plus Acceleration Kit (6 proc.)","VS6-OEPL-AK-P-SSS-C",2901.6]
[]
[null,null,null,"vSPHERE (OTHER)"]
[null,null,null,"• vSphere Desktop (100 VM pack)","VS6-DT100VM-P-SSS-C",802.75]
[null,null,null,"• vSphere Remote Office Branch Office Standard (25 VM pack)","VS6-RBSTD25-P-SSS-C",370.5]
[null,null,null,"• vSphere Remote Office Branch Office Advanced (25 VM pack)","VS6-RBADV25-P-SSS-C",555.75]
[]
[null,null,null,"WORKSPACE SUITE"]
[null,null,null,"• Workspace Suite On Premise, Perpetual: 10 Named Users","WSP-STE-10-P-SSS-C",605.15]
[null,null,null,"• Workspace Suite On Premise, Perpetual: 100 Named Users","WSP-STE-100-P-SSS-C",6051.5]
[]
[null,null,null,"WORKSTATION"]
[null,null,null,"• Workstation - Windows/Linux (SnS is optional)","WS-P-SSS-C",30.55]
[]
[null,null,null,"DISCONTINUED PRODUCTS"]
[null,null,null,"• Horizon Mirage 10 Pack","HZ-MRG-10-P-SSS-C",185.25]
[null,null,null,"• Horizon Mirage 100 Pack","HZ-MRG-100-P-SSS-C",1852.5]
[null,null,null,"• Horizon View 5 Bundle: 10 Pack","VU5-PR-STR-P-SSS-C",308.75]
[null,null,null,"• Horizon View 5 Bundle: 100 Pack","VU5-PR-100-P-SSS-C",3087.5]
[null,null,null,"• Horizon View 5 Add-On: 10 Pack","VU5-PR-A10-P-SSS-C",234.65]
[null,null,null,"• Horizon View 5 Add-On: 100 Pack","VU5-PR-A100-P-SSS-C",2346.5]
[null,null,null,"• Horizon Workspace 10 Pack","HZ-WSP-10-P-SSS-C",185.25]
[null,null,null,"• Horizon Workspace 100 Pack","HZ-WSP-100-P-SSS-C",1852.5]
[null,null,null,"• Mirage Bundle for 10 named Users","MG-10-BUN-P-SSS-C",247]
[null,null,null,"• ThinApp Client","THIN4-CL-P-SSS-C",6.34]
[null,null,null,"• vCenter Server Heartbeat","VCHB-VCMS-P-SSS-C",1234.3499999999999]
[null,null,null,"• vCenter Site Recovery Manager (per CPU)","VI-SRM-P-SSS-C",284.38]
[null,null,null,"• vCloud Director (25 VM Pack)","VC-CD-25VM-P-SSS-C",616.29]
[null,null,null,"• vCloud Networking and Security Standard (25 VM Pack) - EOSL 09/19/2016","CL5-NSSTD25-P-SSS-C",463.45]
[null,null,null,"• vCloud Networking and Security Advanced (25 VM Pack) - EOSL 09/19/2016","CL5-NSADV25-P-SSS-C",772.2]
[null,null,null,"• vSphere w/ Operations Mgmt Enterprise Acceleration Kit  - Soft Bundle ","VS5-MENT-AK-P-SSS-C",2839.85]
[null,null,null,"• vSphere w/ Operations Mgmt Enterprise Plus Acceleration Kit - Soft Bundle ","VS5-MEPL-AK-P-SSS-C",3457.35]

{"sheet":"Click to Quote","index":2,"n_rows":69,"n_cols":11,"rows_kept":69,"cut":false,"hidden":false,"merged":[[26,0,26,1],[20,0,20,2],[20,3,20,5],[20,6,20,9],[34,0,34,2],[34,3,34,5],[34,6,34,9],[27,0,27,1],[28,0,28,1],[29,0,29,1],[30,0,30,1],[31,0,31,1],[12,0,12,10],[22,0,22,1],[23,0,23,1],[24,0,24,1],[25,0,25,1],[21,0,21,1],[53,0,53,1],[42,0,42,1],[43,0,43,1],[45,0,45,1],[48,0,48,1],[49,0,49,1],[50,0,50,1],[41,0,41,1],[35,0,35,1],[60,0,60,1],[61,0,61,1],[57,0,57,1],[54,0,54,1],[55,0,55,1],[56,0,56,1],[36,0,36,1],[37,0,37,1],[38,0,38,1],[39,0,39,1],[40,0,40,1],[44,0,44,1],[51,0,51,1],[52,0,52,1]]}
[]
[]
[]
[]
[]
[]
[]
[]
[]
[]
[]
[]
["VMware Price Quote"]
[]
["Quote #:",{"$f":"CONCATENATE(\"OAR\",ROUND(NOW(),2),ROUND((RAND()*10000),0))","v":"OAR42244.61320"},null,null,null,null,null,null,null,"Date:",{"$f":"TODAY()","v":"2015-08-28"}]
[]
["Customer Name:",{"$f":"IF('VMware FINAL ORDER SUMMARY'!$H$51=FALSE,\"\",'VMware FINAL ORDER SUMMARY'!$H$51)","v":""}]
[]
[]
["New Licenses"]
["VMware Products",null,null,"License Fees",null,null,"Maintenance Fees"]
["Product",null,"Product Code","Qty","License Fee","License Total","SnS Term","SnS Fee","SnS Total","SnS Code","Total Cost"]
[{"$f":"'VMware FINAL ORDER SUMMARY'!$F74","v":0},null,{"$f":"'VMware FINAL ORDER SUMMARY'!H74","v":""},{"$f":"'VMware FINAL ORDER SUMMARY'!J74","v":0},{"$f":"'VMware FINAL ORDER SUMMARY'!K74","v":""},{"$f":"'VMware FINAL ORDER SUMMARY'!L74","v":""},{"$f":"'VMware FINAL ORDER SUMMARY'!M74","v":0},{"$f":"'VMware FINAL ORDER SUMMARY'!N74","v":""},{"$f":"'VMware FINAL ORDER SUMMARY'!O74","v":""},{"$f":"'VMware FINAL ORDER SUMMARY'!P74","v":""},{"$f":"'VMware FINAL ORDER SUMMARY'!S74","v":0}]
[{"$f":"'VMware FINAL ORDER SUMMARY'!$F75","v":0},null,{"$f":"'VMware FINAL ORDER SUMMARY'!H75","v":""},{"$f":"'VMware FINAL ORDER SUMMARY'!J75","v":0},{"$f":"'VMware FINAL ORDER SUMMARY'!K75","v":""},{"$f":"'VMware FINAL ORDER SUMMARY'!L75","v":""},{"$f":"'VMware FINAL ORDER SUMMARY'!M75","v":0},{"$f":"'VMware FINAL ORDER SUMMARY'!N75","v":""},{"$f":"'VMware FINAL ORDER SUMMARY'!O75","v":""},{"$f":"'VMware FINAL ORDER SUMMARY'!P75","v":""},{"$f":"'VMware FINAL ORDER SUMMARY'!S75","v":0}]
[{"$f":"'VMware FINAL ORDER SUMMARY'!$F76","v":0},null,{"$f":"'VMware FINAL ORDER SUMMARY'!H76","v":""},{"$f":"'VMware FINAL ORDER SUMMARY'!J76","v":0},{"$f":"'VMware FINAL ORDER SUMMARY'!K76","v":""},{"$f":"'VMware FINAL ORDER SUMMARY'!L76","v":""},{"$f":"'VMware FINAL ORDER SUMMARY'!M76","v":0},{"$f":"'VMware FINAL ORDER SUMMARY'!N76","v":""},{"$f":"'VMware FINAL ORDER SUMMARY'!O76","v":""},{"$f":"'VMware FINAL ORDER SUMMARY'!P76","v":""},{"$f":"'VMware FINAL ORDER SUMMARY'!S76","v":0}]
[{"$f":"'VMware FINAL ORDER SUMMARY'!$F77","v":0},null,{"$f":"'VMware FINAL ORDER SUMMARY'!H77","v":""},{"$f":"'VMware FINAL ORDER SUMMARY'!J77","v":0},{"$f":"'VMware FINAL ORDER SUMMARY'!K77","v":""},{"$f":"'VMware FINAL ORDER SUMMARY'!L77","v":""},{"$f":"'VMware FINAL ORDER SUMMARY'!M77","v":0},{"$f":"'VMware FINAL ORDER SUMMARY'!N77","v":""},{"$f":"'VMware FINAL ORDER SUMMARY'!O77","v":""},{"$f":"'VMware FINAL ORDER SUMMARY'!P77","v":""},{"$f":"'VMware FINAL ORDER SUMMARY'!S77","v":0}]
[{"$f":"'VMware FINAL ORDER SUMMARY'!$F78","v":0},null,{"$f":"'VMware FINAL ORDER SUMMARY'!H78","v":""},{"$f":"'VMware FINAL ORDER SUMMARY'!J78","v":0},{"$f":"'VMware FINAL ORDER SUMMARY'!K78","v":""},{"$f":"'VMware FINAL ORDER SUMMARY'!L78","v":""},{"$f":"'VMware FINAL ORDER SUMMARY'!M78","v":0},{"$f":"'VMware FINAL ORDER SUMMARY'!N78","v":""},{"$f":"'VMware FINAL ORDER SUMMARY'!O78","v":""},{"$f":"'VMware FINAL ORDER SUMMARY'!P78","v":""},{"$f":"'VMware FINAL ORDER SUMMARY'!S78","v":0}]
[{"$f":"'VMware FINAL ORDER SUMMARY'!$F79","v":0},null,{"$f":"'VMware FINAL ORDER SUMMARY'!H79","v":""},{"$f":"'VMware FINAL ORDER SUMMARY'!J79","v":0},{"$f":"'VMware FINAL ORDER SUMMARY'!K79","v":""},{"$f":"'VMware FINAL ORDER SUMMARY'!L79","v":""},{"$f":"'VMware FINAL ORDER SUMMARY'!M79","v":0},{"$f":"'VMware FINAL ORDER SUMMARY'!N79","v":""},{"$f":"'VMware FINAL ORDER SUMMARY'!O79","v":""},{"$f":"'VMware FINAL ORDER SUMMARY'!P79","v":""},{"$f":"'VMware FINAL ORDER SUMMARY'!S79","v":0}]
[{"$f":"'VMware FINAL ORDER SUMMARY'!$F80","v":0},null,{"$f":"'VMware FINAL ORDER SUMMARY'!H80","v":""},{"$f":"'VMware FINAL ORDER SUMMARY'!J80","v":0},{"$f":"'VMware FINAL ORDER SUMMARY'!K80","v":""},{"$f":"'VMware FINAL ORDER SUMMARY'!L80","v":""},{"$f":"'VMware FINAL ORDER SUMMARY'!M80","v":0},{"$f":"'VMware FINAL ORDER SUMMARY'!N80","v":""},{"$f":"'VMware FINAL ORDER SUMMARY'!O80","v":""},{"$f":"'VMware FINAL ORDER SUMMARY'!P80","v":""},{"$f":"'VMware FINAL ORDER SUMMARY'!S80","v":0}]
[{"$f":"'VMware FINAL ORDER SUMMARY'!$F81","v":0},null,{"$f":"'VMware FINAL ORDER SUMMARY'!H81","v":""},{"$f":"'VMware FINAL ORDER SUMMARY'!J81","v":0},{"$f":"'VMware FINAL ORDER SUMMARY'!K81","v":""},{"$f":"'VMware FINAL ORDER SUMMARY'!L81","v":""},{"$f":"'VMware FINAL ORDER SUMMARY'!M81","v":0},{"$f":"'VMware FINAL ORDER SUMMARY'!N81","v":""},{"$f":"'VMware FINAL ORDER SUMMARY'!O81","v":""},{"$f":"'VMware FINAL ORDER SUMMARY'!P81","v":""},{"$f":"'VMware FINAL ORDER SUMMARY'!S81","v":0}]
[{"$f":"'VMware FINAL ORDER SUMMARY'!$F82","v":0},null,{"$f":"'VMware FINAL ORDER SUMMARY'!H82","v":""},{"$f":"'VMware FINAL ORDER SUMMARY'!J82","v":0},{"$f":"'VMware FINAL ORDER SUMMARY'!K82","v":""},{"$f":"'VMware FINAL ORDER SUMMARY'!L82","v":""},{"$f":"'VMware FINAL ORDER SUMMARY'!M82","v":0},{"$f":"'VMware FINAL ORDER SUMMARY'!N82","v":""},{"$f":"'VMware FINAL ORDER SUMMARY'!O82","v":""},{"$f":"'VMware FINAL ORDER SUMMARY'!P82","v":""},{"$f":"'VMware FINAL ORDER SUMMARY'!S82","v":0}]
[{"$f":"'VMware FINAL ORDER SUMMARY'!$F83","v":0},null,{"$f":"'VMware FINAL ORDER SUMMARY'!H83","v":""},{"$f":"'VMware FINAL ORDER SUMMARY'!J83","v":0},{"$f":"'VMware FINAL ORDER SUMMARY'!K83","v":""},{"$f":"'VMware FINAL ORDER SUMMARY'!L83","v":""},{"$f":"'VMware FINAL ORDER SUMMARY'!M83","v":0},{"$f":"'VMware FINAL ORDER SUMMARY'!N83","v":""},{"$f":"'VMware FINAL ORDER SUMMARY'!O83","v":""},{"$f":"'VMware FINAL ORDER SUMMARY'!P83","v":""},{"$f":"'VMware FINAL ORDER SUMMARY'!S83","v":0}]
[]
["Upgrade Licenses:"]
["VMware Products",null,null,"License Fees",null,null,"Maintenance Fees"]
["Product",null,"Product Code","Qty","License Fee","License Total","SnS Term","SnS Fee","SnS Total","SnS Code","Total Cost"]
[{"$f":"'VMware FINAL ORDER SUMMARY'!$F92","v":0},null,{"$f":"'VMware FINAL ORDER SUMMARY'!H92","v":""},{"$f":"'VMware FINAL ORDER SUMMARY'!J92","v":0},{"$f":"'VMware FINAL ORDER SUMMARY'!K92","v":""},{"$f":"'VMware FINAL ORDER SUMMARY'!L92","v":""},{"$f":"'VMware FINAL ORDER SUMMARY'!M92","v":0},{"$f":"'VMware FINAL ORDER SUMMARY'!N92","v":""},{"$f":"'[1]VMware FINAL ORDER SUMMARY'!O70","v":0},{"$f":"'VMware FINAL ORDER SUMMARY'!P92","v":""},{"$f":"'VMware FINAL ORDER SUMMARY'!S92","v":0}]
[{"$f":"'VMware FINAL ORDER SUMMARY'!$F93","v":""},null,null,null,null,null,null,{"$f":"'VMware FINAL ORDER SUMMARY'!O93","v":""},{"$f":"'VMware FINAL ORDER SUMMARY'!O93","v":""},null,{"$f":"'VMware FINAL ORDER SUMMARY'!S93","v":""}]
[{"$f":"'VMware FINAL ORDER SUMMARY'!$F94","v":0},null,{"$f":"'VMware FINAL ORDER SUMMARY'!H94","v":""},{"$f":"'VMware FINAL ORDER SUMMARY'!J94","v":0},{"$f":"'VMware FINAL ORDER SUMMARY'!K94","v":""},{"$f":"'VMware FINAL ORDER SUMMARY'!L94","v":""},{"$f":"'VMware FINAL ORDER SUMMARY'!M94","v":0},{"$f":"'VMware FINAL ORDER SUMMARY'!N94","v":""},{"$f":"'[1]VMware FINAL ORDER SUMMARY'!O72","v":""},{"$f":"'VMware FINAL ORDER SUMMARY'!P94","v":""},{"$f":"'VMware FINAL ORDER SUMMARY'!S94","v":0}]
[{"$f":"'VMware FINAL ORDER SUMMARY'!$F95","v":0},null,null,null,null,null,null,{"$f":"'VMware FINAL ORDER SUMMARY'!N95","v":0},{"$f":"'[1]VMware FINAL ORDER SUMMARY'!O73","v":""},null,{"$f":"'VMware FINAL ORDER SUMMARY'!S95","v":""}]
[{"$f":"'VMware FINAL ORDER SUMMARY'!$F96","v":0},null,{"$f":"'VMware FINAL ORDER SUMMARY'!H96","v":""},{"$f":"'VMware FINAL ORDER SUMMARY'!J96","v":0},{"$f":"'VMware FINAL ORDER SUMMARY'!K96","v":""},{"$f":"'VMware FINAL ORDER SUMMARY'!L96","v":""},{"$f":"'VMware FINAL ORDER SUMMARY'!M96","v":0},{"$f":"'VMware FINAL ORDER SUMMARY'!N96","v":""},{"$f":"'[1]VMware FINAL ORDER SUMMARY'!O74","v":""},{"$f":"'VMware FINAL ORDER SUMMARY'!P96","v":""},{"$f":"'VMware FINAL ORDER SUMMARY'!S96","v":0}]
[{"$f":"'VMware FINAL ORDER SUMMARY'!$F97","v":""},null,null,null,null,null,null,{"$f":"'VMware FINAL ORDER SUMMARY'!N97","v":0},{"$f":"'[1]VMware FINAL ORDER SUMMARY'!O75","v":""},null,{"$f":"'VMware FINAL ORDER SUMMARY'!S97","v":""}]
[{"$f":"'VMware FINAL ORDER SUMMARY'!$F98","v":0},null,{"$f":"'VMware FINAL ORDER SUMMARY'!H98","v":""},{"$f":"'VMware FINAL ORDER SUMMARY'!J98","v":0},{"$f":"'VMware FINAL ORDER SUMMARY'!K98","v":""},{"$f":"'VMware FINAL ORDER SUMMARY'!L98","v":""},{"$f":"'VMware FINAL ORDER SUMMARY'!M98","v":0},{"$f":"'VMware FINAL ORDER SUMMARY'!N98","v":""},{"$f":"'[1]VMware FINAL ORDER SUMMARY'!O76","v":""},{"$f":"'VMware FINAL ORDER SUMMARY'!P98","v":""},{"$f":"'VMware FINAL ORDER SUMMARY'!S98","v":0}]
[{"$f":"'VMware FINAL ORDER SUMMARY'!$F99","v":""},null,null,null,null,null,null,{"$f":"'VMware FINAL ORDER SUMMARY'!N99","v":0},{"$f":"'[1]VMware FINAL ORDER SUMMARY'!O77","v":""},null,{"$f":"'VMware FINAL ORDER SUMMARY'!S99","v":""}]
[{"$f":"'VMware FINAL ORDER SUMMARY'!$F100","v":0},null,{"$f":"'VMware FINAL ORDER SUMMARY'!H100","v":""},{"$f":"'VMware FINAL ORDER SUMMARY'!J100","v":0},{"$f":"'VMware FINAL ORDER SUMMARY'!K100","v":""},{"$f":"'VMware FINAL ORDER SUMMARY'!L100","v":""},{"$f":"'VMware FINAL ORDER SUMMARY'!M100","v":0},{"$f":"'VMware FINAL ORDER SUMMARY'!N100","v":""},{"$f":"'[1]VMware FINAL ORDER SUMMARY'!O78","v":""},{"$f":"'VMware FINAL ORDER SUMMARY'!P100","v":""},{"$f":"'VMware FINAL ORDER SUMMARY'!S100","v":0}]
[{"$f":"'VMware FINAL ORDER SUMMARY'!$F101","v":""},null,null,null,null,null,null,{"$f":"'VMware FINAL ORDER SUMMARY'!N101","v":0},{"$f":"'[1]VMware FINAL ORDER SUMMARY'!O79","v":""},null,{"$f":"'VMware FINAL ORDER SUMMARY'!S101","v":""}]
[]
["Maintenance Renewals"]
["Product",null,"Product Code","Qty","SnS Term","SnS Fee","SnS Total"]
[{"$f":"'VMware FINAL ORDER SUMMARY'!$F118","v":0},null,{"$f":"'VMware FINAL ORDER SUMMARY'!H118","v":""},{"$f":"'VMware FINAL ORDER SUMMARY'!J118","v":0},{"$f":"'VMware FINAL ORDER SUMMARY'!K118","v":0},{"$f":"'VMware FINAL ORDER SUMMARY'!L118","v":""},{"$f":"'VMware FINAL ORDER SUMMARY'!M118","v":0}]
[{"$f":"'VMware FINAL ORDER SUMMARY'!$F119","v":0},null,{"$f":"'VMware FINAL ORDER SUMMARY'!H119","v":""},{"$f":"'VMware FINAL ORDER SUMMARY'!J119","v":0},{"$f":"'VMware FINAL ORDER SUMMARY'!K119","v":0},{"$f":"'VMware FINAL ORDER SUMMARY'!L119","v":""},{"$f":"'VMware FINAL ORDER SUMMARY'!M119","v":0}]
[{"$f":"'VMware FINAL ORDER SUMMARY'!$F120","v":0},null,{"$f":"'VMware FINAL ORDER SUMMARY'!H120","v":""},{"$f":"'VMware FINAL ORDER SUMMARY'!J120","v":0},{"$f":"'VMware FINAL ORDER SUMMARY'!K120","v":0},{"$f":"'VMware FINAL ORDER SUMMARY'!L120","v":""},{"$f":"'VMware FINAL ORDER SUMMARY'!M120","v":0}]
[{"$f":"'VMware FINAL ORDER SUMMARY'!$F121","v":0},null,{"$f":"'VMware FINAL ORDER SUMMARY'!H121","v":""},{"$f":"'VMware FINAL ORDER SUMMARY'!J121","v":0},{"$f":"'VMware FINAL ORDER SUMMARY'!K121","v":0},{"$f":"'VMware FINAL ORDER SUMMARY'!L121","v":""},{"$f":"'VMware FINAL ORDER SUMMARY'!M121","v":0}]
[{"$f":"'VMware FINAL ORDER SUMMARY'!$F122","v":0},null,{"$f":"'VMware FINAL ORDER SUMMARY'!H122","v":""},{"$f":"'VMware FINAL ORDER SUMMARY'!J122","v":0},{"$f":"'VMware FINAL ORDER SUMMARY'!K122","v":0},{"$f":"'VMware FINAL ORDER SUMMARY'!L122","v":""},{"$f":"'VMware FINAL ORDER SUMMARY'!M122","v":0}]
[{"$f":"'VMware FINAL ORDER SUMMARY'!$F123","v":0},null,{"$f":"'VMware FINAL ORDER SUMMARY'!H123","v":""},{"$f":"'VMware FINAL ORDER SUMMARY'!J123","v":0},{"$f":"'VMware FINAL ORDER SUMMARY'!K123","v":0},{"$f":"'VMware FINAL ORDER SUMMARY'!L123","v":""},{"$f":"'VMware FINAL ORDER SUMMARY'!M123","v":0}]
[{"$f":"'VMware FINAL ORDER SUMMARY'!$F127","v":0},null,{"$f":"'VMware FINAL ORDER SUMMARY'!H127","v":""},{"$f":"'VMware FINAL ORDER SUMMARY'!J127","v":0},{"$f":"'VMware FINAL ORDER SUMMARY'!K127","v":0},{"$f":"'VMware FINAL ORDER SUMMARY'!L127","v":""},{"$f":"'VMware FINAL ORDER SUMMARY'!M127","v":0}]
[null,null,{"$f":"'VMware FINAL ORDER SUMMARY'!H128","v":0},{"$f":"'VMware FINAL ORDER SUMMARY'!J128","v":0},{"$f":"'VMware FINAL ORDER SUMMARY'!K128","v":0}]
[{"$f":"'VMware FINAL ORDER SUMMARY'!$F129","v":0},null,{"$f":"'VMware FINAL ORDER SUMMARY'!H129","v":0},{"$f":"'VMware FINAL ORDER SUMMARY'!J129","v":0},{"$f":"'VMware FINAL ORDER SUMMARY'!K129","v":0},{"$f":"'VMware FINAL ORDER SUMMARY'!L129","v":0},{"$f":"'VMware FINAL ORDER SUMMARY'!M129","v":0}]
[]
["PSO Credits"]
["Professional Services Credits",null,"Product Code","Qty","PSO Fee","PSO Total"]
[{"$f":"IF('VMware FINAL ORDER SUMMARY'!$J$108=\"\",\"\",'VMware FINAL ORDER SUMMARY'!$F108)","v":""},null,{"$f":"IF('VMware FINAL ORDER SUMMARY'!$J$108=\"\",\"\",'VMware FINAL ORDER SUMMARY'!H108)","v":""},{"$f":"'VMware FINAL ORDER SUMMARY'!J108","v":0},{"$f":"IF('VMware FINAL ORDER SUMMARY'!$J$108=\"\",\"\",'VMware FINAL ORDER SUMMARY'!K108)","v":""},{"$f":"'VMware FINAL ORDER SUMMARY'!L108","v":0}]
[]
[]
[]
[]
[]
[]
["GRAND TOTAL:",{"$f":"SUM(K23:K32,K37:K46,G50:G58,F62)","v":0}]